Cogmind - Beta 16 @@@ ROGUE MODE // 2026.01.06 @ 23:19:47 Player: AngelSpirit Result: Destroyed by Alpha 7 with Multirail Performance ------------- Evolutions (7) 3500 Regions Visited (28) 5600 Robots Destroyed (320) 1600 Value Destroyed (15238) 15238 Prototype IDs (128) 2560 Alien Tech Used (11) 2200 Bonus (15170) 15170 TOTAL SCORE: 45868 Bonus ------- High Alert Combat Kills 1972 Follower Combat Kills 3495 Subatomizer Sterilization 3000 Network Hubs Disabled 200 Met Data Miner 300 Met Imprinter 300 Was Imprinted 300 Met Warlord at Base 500 MAIN.C Attacked Warlord 500 Warlord Defense Kills 3156 Built Enhanced Grunts 300 A7 Reached Mainframe 300 Met R17 at Cetus 500 Scanned by Researcher 500 Friendly Fire -153 Cogmind --------- Core Integrity 0/1550 Matter 209/300 Energy 387/390 System Corruption 35% +Membrane Temperature Cool (6) Movement Hovering (52) Location -3/Section 7 Parts ------- > --- POWER (2) -------- Particle Reactor Micro Antimatter Reactor > --- PROPULSION (6) --- Antigrav System Antigrav System Improved Antigrav System > --- UTILITY (10) ----- Advanced Heat Sink Advanced Heat Sink Advanced Gravity Neutralizer Experimental Optical Array Faulty Spectral Analyzer Experimental Signal Interpreter > --- WEAPON (3) ------- (None) > --- INVENTORY (7) ---- Experimental Matter Compressor (500) Experimental Shield Generator Spacefold Activator Compact HERF Cannon Vortex Cannon (11) Core Cannon Peak State ------------ > --- POWER ------------ Particle Reactor Quantum Reactor > --- PROPULSION ------- Improved Gyrokinetic Inverter Improved Gyrokinetic Inverter Antigrav Array Combat Linear Gravjet Combat Linear Gravjet > --- UTILITY ---------- Coolant Network Large Storage Unit Experimental Optical Array Advanced Sensor Array Experimental Signal Interpreter Long-range Terrain Scanner Quantum Capacitor System Guard > --- WEAPON ----------- Compact HERF Cannon Core Cannon > --- INVENTORY -------- Cooled Gravmag System Experimental Cooling System Experimental Matter Compressor Advanced Gravity Neutralizer Advanced Gravity Neutralizer Advanced Weapon Cycler Centrium Medium Armor Plating Centrium Heavy Armor Plating Graphene Brace Thermal Barrier Vortex Cannon Vortex Cannon [Rating: 177] Favorites ----------- Power Meta Core Engine Backup Power III Power Core Meta Core Reactor Vortex Chain Reactor Propulsion Gravmag Array Leg Aluminum Leg Wheel Wheel Hover Unit Gravmag Array Flight Unit Cesium-ion Thruster Utility Experimental Signal Interpreter Device Advanced Sensor Array Storage Large Storage Unit Processor Experimental Signal Interpreter Hackware System Shield Protection Light Regenerative Plating Artifact Spacefold Activator Weapon Cooled Plasma Cannon Energy Gun Gatling Laser Energy Cannon Cooled Plasma Cannon Ballistic Gun Advanced KE Penetrator Ballistic Cannon Hypervelocity Mass Driver Launcher Smartbomb Launcher Impact Weapon Power Maul Slashing Weapon Scythe Piercing Weapon Makeshift Spear Build | -11 -10 -10 -8 -7 -7 -7 -7 -6 -6 -6 -6 -6 -5 -5 -5 -5 -5 -5 -4 -4 -4 -4 -4 -4 -3 -3 -3 -3 ------- Run | Yrd Mat Sub Mat Fac Low Low Dat Pro Fac Low Low Zio Pro Fac Ext Cet Arc Hub Fac Was Fac Upp Upp War Pro Res Qua Sec Slots Evolved 14 | . . . 4 2 . . . . 2 . . . . 2 . . . . 2 . . . . . . 2 . . Power 1 | . . . . . . . . . . . . . . . . . . . 1 . . . . . . . . . Propulsion 4 | . . . 1 1 . . . . . . . . . 1 . . . . 1 . . . . . . . . . Utility 8 | . . . 2 1 . . . . 2 . . . . 1 . . . . . . . . . . . 2 . . Weapon 1 | . . . 1 . . . . . . . . . . . . . . . . . . . . . . . . . Parts Attached 318 | 6 13 10 26 34 3 4 . 8 34 1 1 . . 15 14 6 3 7 8 1 30 1 2 18 2 31 13 27 Power 29 | 1 2 1 2 1 . . . . . . . . . . . . . 1 1 1 6 . . 1 . 2 1 9 Engine 5 | 1 1 1 1 . . . . . . . . . . . . . . 1 . . . . . . . . . . Core 7 | . 1 . 1 1 . . . . . . . . . . . . . . . . 3 . . . . 1 . . Reactor 17 | . . . . . . . . . . . . . . . . . . . 1 1 3 . . 1 . 1 1 9 Propulsion 83 | 2 . 2 10 10 1 . . 5 11 . . . . 2 5 1 1 3 1 . 13 . . 4 . 5 2 5 Treads . | . . . . . . . . . . . . . . . . . . . . . . . . . . . . . Leg 3 | . . . 3 . . . . . . . . . . . . . . . . . . . . . . . . . Wheel 14 | 2 . 2 7 . . . . 2 1 . . . . . . . . . . . . . . . . . . . Hover 53 | . . . . . . . . 2 10 . . . . 2 5 1 1 3 1 . 12 . . 4 . 5 2 5 Flight 13 | . . . . 10 1 . . 1 . . . . . . . . . . . . 1 . . . . . . . Utility 121 | 1 5 1 5 13 1 1 . 1 11 . 1 . . 9 5 3 2 2 6 . 7 1 1 11 2 15 7 10 Device 59 | . . 1 2 3 . 1 . 1 6 . . . . 5 2 . 2 . 3 . 5 . . 6 2 10 4 6 Storage 10 | 1 2 . . 3 . . . . . . . . . 1 1 . . . . . . . . 1 . . 1 . Processor 22 | . 2 . 1 4 . . . . 3 . 1 . . 1 . . . . 3 . 1 . . 2 . 2 1 1 Hackware 5 | . . . . 2 1 . . . . . . . . . 1 . . 1 . . . . . . . . . . Protection 24 | . 1 . 2 1 . . . . 2 . . . . 2 1 3 . 1 . . 1 1 1 2 . 3 1 2 Artifact 1 | . . . . . . . . . . . . . . . . . . . . . . . . . . . . 1 Weapon 85 | 2 6 6 9 10 1 3 . 2 12 1 . . . 4 4 2 . 1 . . 4 . 1 2 . 9 3 3 Energy Gun 23 | 1 3 1 4 3 . . . . 3 . . . . . 3 1 . 1 . . . . . . . 2 1 . Energy Cannon 21 | . . . . . . . . . 6 1 . . . 1 . . . . . . 2 . . . . 7 2 2 Ballistic Gun 13 | 1 1 3 1 3 . 1 . . 1 . . . . . 1 1 . . . . . . . . . . . . Ballistic Cannon 9 | . 1 1 1 1 . . . . . . . . . . . . . . . . 2 . 1 2 . . . . Launcher 8 | . . 1 2 2 . . . 1 . . . . . 2 . . . . . . . . . . . . . . Special Weapon . | . . . . . . . . . . . . . . . . . . . . . . . . . . . . . Impact Weapon 3 | . . . . 1 . . . . 2 . . . . . . . . . . . . . . . . . . . Slashing Weapon 6 | . 1 . 1 . . 2 . . . . . . . 1 . . . . . . . . . . . . . 1 Piercing Weapon 2 | . . . . . 1 . . 1 . . . . . . . . . . . . . . . . . . . . Special Melee Weapon . | . . . . . . . . . . . . . . . . . . . . . . . . . . . . . Unidentified Prototypes 71 | . . . 4 10 . . . 1 2 . . . . 5 4 3 . 2 2 . 5 . . 10 . 8 2 13 Corrupted Parts 8 | . . . . 3 . . . 1 . . . . . . . 1 . 3 . . . . . . . . . . System Corruption 57 | . . . . 30 . . . 10 . . . . . . . 5 . 12 . . . . . . . . . . Parts Lost 91 | . 2 4 13 4 . . . 2 1 . . . . 1 2 . . 10 1 . 19 . . 1 2 5 4 20 Power 14 | . 1 1 1 . . . . . . . . . . . . . . 2 . . 4 . . . . . . 5 Propulsion 32 | . . 2 5 3 . . . 2 . . . . . . 1 . . 2 . . 8 . . . . 1 1 7 Utility 23 | . . . 3 1 . . . . . . . . . . . . . 5 1 . 3 . . 1 1 2 1 5 Weapon 22 | . 1 1 4 . . . . . 1 . . . . 1 1 . . 1 . . 4 . . . 1 2 2 3 Highest Loss Streak 13 | . 1 2 12 2 . . . 2 1 . . . . 1 2 . . 10 1 . 7 . . 1 1 2 2 13 To Critical Strikes 1 | . . . . . . . . . . . . . . . . . . . . . . . . . . . 1 . Average Backups 10 | . 8 8 7 8 10 10 10 9 9 9 10 10 9 12 12 11 12 11 10 9 10 12 13 12 11 12 12 12 Power . | . . . . . . . . . . . . . . . . 1 . . . 1 . . . . . . . . Propulsion 1 | . 1 1 2 1 1 1 2 . 1 2 2 2 2 1 . 1 1 1 . . . 3 3 1 2 1 1 1 Utility 4 | . . 2 1 2 3 2 2 2 1 2 3 3 2 6 6 6 7 7 5 5 6 7 8 8 6 8 8 6 Weapon 4 | . 6 4 2 4 6 6 6 6 6 5 5 5 5 5 4 2 3 3 4 3 2 1 1 2 3 2 2 3 Tool/Special . | . . . . . . . . . . . . . . . . . . . . . . . . . . . . . Unused Backups 47 | . 1 3 1 9 . . . . 7 1 . . . 4 1 2 1 . . 1 1 . 1 4 . 3 1 6 Power 4 | . . . . 2 . . . . . . . . . . . . 1 . . 1 . . . . . . . . Propulsion 8 | . . . . 2 . . . . 1 . . . . . . 1 . . . . . . 1 2 . 1 . . Utility 20 | . . 1 . 4 . . . . 1 1 . . . 4 1 . . . . . 1 . . 2 . 1 1 3 Weapon 14 | . 1 2 1 1 . . . . 5 . . . . . . 1 . . . . . . . . . 1 . 2 Tool/Special 1 | . . . . . . . . . . . . . . . . . . . . . . . . . . . . 1 Average Slot Usage (%) 84 | . 98 94 87 87 89 93 93 77 89 87 87 87 87 87 90 88 87 81 62 91 87 88 89 81 85 72 74 66 Engine 1 | . 6 8 4 . . . . . . . . . . . . . . . . 2 3 . . . . . . . Core 3 | . 7 . 1 6 6 6 6 6 5 6 6 6 6 5 5 5 5 4 . . . 10 10 1 . . 1 . Reactor 1 | . . . . . . . . . . . . . . . . . . . 1 5 4 . . 4 5 4 7 8 Wheel 4 | . 28 27 20 . . . . 5 1 . . . . . . . . . . . . . . . . . . . Hover 14 | . . . . . . . . 7 12 12 12 12 12 16 18 16 16 15 22 26 25 26 26 26 31 24 20 17 Flight 2 | . . . . 27 26 26 26 8 . . . . . . . . . . . . . . . . . . . . Device 10 | . . 10 9 8 6 6 6 6 9 12 8 6 6 7 6 5 8 12 7 15 13 12 10 11 10 17 20 15 Storage 6 | . 14 14 7 5 6 6 6 6 5 6 6 6 6 5 5 5 5 5 5 5 5 5 5 5 5 4 4 3 Processor 13 | . 8 . 7 9 13 13 13 13 12 12 15 18 18 16 16 16 14 11 19 21 21 21 21 20 15 10 11 11 Hackware 5 | . . . . 9 13 13 13 13 11 12 12 12 12 11 9 5 5 8 . . . . . . . . . . Protection 4 | . 4 3 7 3 . . . . 4 6 6 6 6 8 11 15 13 7 . . . 2 5 3 7 3 . 2 Energy Gun 2 | . 20 1 6 1 . . . . 12 . . . . . 3 . . . . . . . . . . 1 . . Energy Cannon 4 | . . . . . . . . . 2 17 18 17 17 15 11 . . . . . . . . . . 2 5 2 Ballistic Gun 3 | . 4 14 5 1 6 . . . 1 . . . . . 1 15 16 14 4 15 12 . . . . . . . Ballistic Cannon 1 | . 2 11 1 . . . . . . . . . . . . . . . . . . 6 5 2 5 . . . Launcher 1 | . . . 8 3 . . . . . . . . . . . . . . . . . 3 5 4 2 . . . Slashing Weapon 1 | . . . 2 6 6 12 13 2 . . . . . . . . . . . . . . . . . . . 2 Peak Build Rating 177 | 6 12 31 39 70 68 69 69 72 97 94 94 94 94 110 116 120 117 117 113 122 127 122 122 159 156 171 177 164 Average Rating 96 | 4 10 24 22 56 65 67 69 61 88 92 92 93 92 106 110 116 116 106 81 118 115 120 122 135 147 160 154 145 On Entrance 88 | . 6 8 30 22 63 68 69 69 63 93 93 93 93 93 108 116 117 117 45 113 121 119 122 122 156 140 165 154 Avg Prop Armor Cover (%) 11 | . . . 11 . . . . 8 4 . . . . . . . . . 18 . 4 . . . . . . 27 Naked Turns . | . . . . . . . . . . . . . . . . . . . . . . . . . . . . . Heaviest Build 101 | 11 94 94 101 28 24 24 24 26 43 43 42 46 42 53 55 56 58 62 67 71 71 63 56 96 90 92 89 87 Greatest Support 102 | 26 26 26 42 28 25 25 25 44 56 44 44 44 44 53 60 58 58 58 72 72 81 65 65 76 76 102 102 84 Greatest Overweight (x) 9 | . 3 3 9 1 . . . 1 1 . . 1 . . 1 1 . 1 6 . 1 . . 1 1 1 1 1 Average Overweight (x) . | . 2 3 2 . . . . . . . . . . . . . . . . . . . . . . . . . Largest Inventory Capacity 25 | 8 25 25 25 25 10 10 10 10 10 10 10 10 10 15 15 15 15 15 15 15 15 15 15 15 15 15 15 17 Average Capacity 14 | 7 19 25 22 9 10 10 10 10 10 10 10 10 10 14 15 15 15 15 15 15 15 15 15 15 15 15 15 15 Most Carried 25 | . 11 25 24 17 10 10 10 10 10 10 10 10 10 15 15 15 15 15 15 15 15 15 15 15 15 15 15 17 Average Carried 12 | . 8 22 11 8 10 10 10 9 9 9 10 10 9 13 14 14 14 14 12 12 13 14 15 14 14 14 14 14 Final Capacity 25 | 8 25 25 25 10 10 10 10 10 10 10 10 10 10 15 15 15 15 15 15 15 15 15 15 15 15 15 15 7 Final Carried 25 | . 11 25 17 10 10 10 10 9 10 10 10 10 10 15 15 15 15 15 11 15 15 15 15 15 15 12 15 7 Class Distribution -------------------- 22% | Hacker-Scout 18% | Mutant 12% | Hacker-Skirmisher 12% | Scout 7% | Scavenger-Scout 4% | Commander-Gunner 4% | Skirmisher 4% | Commander-Scout 3% | Scavenger-Mutant Dominant Class ---------------- Mutant | -10/Materials Mutant | -10/Subcaves Skirmisher | -8/Materials Hacker-Scout | -7/Factory Hacker-Scout | -7/Lower Caves Hacker-Scout | -7/Lower Caves Derelict-Scout | -7/Data Miner Derelict-Assassin | -6/Proximity Caves Hacker-Skirmisher | -6/Factory Hacker-Skirmisher | -6/Lower Caves Hacker-Scout | -6/Lower Caves Hacker-Scout | -6/Zion Hacker-Scout | -5/Proximity Caves Hacker-Scout | -5/Factory Hacker-Scout | -5/Extension Commander-Gunner | -5/Cetus Commander-Gunner | -5/Archives Commander-Gunner | -5/Hub_04(d) Scout | -4/Factory Scout | -4/Waste Scout | -4/Factory Scout | -4/Upper Caves Scout | -4/Upper Caves Commander-Scout | -4/Warlord Mutant | -3/Proximity Caves Scavenger-Mutant | -3/Research Scavenger-Scout | -3/Quarantine Scavenger-Scout | -3/Section 7 Resources | -11 -10 -10 -8 -7 -7 -7 -7 -6 -6 -6 -6 -6 -5 -5 -5 -5 -5 -5 -4 -4 -4 -4 -4 -4 -3 -3 -3 -3 ----------- Run | Yrd Mat Sub Mat Fac Low Low Dat Pro Fac Low Low Zio Pro Fac Ext Cet Arc Hub Fac Was Fac Upp Upp War Pro Res Qua Sec Matter Collected 11060 | 215 172 463 500 828 256 66 . 572 928 130 55 40 90 340 260 265 273 244 . 292 1029 200 165 1303 834 567 157 816 Remotely . | . . . . . . . . . . . . . . . . . . . . . . . . . . . . . Salvage Created 13826 | . 447 205 632 487 . . . 187 1749 368 54 . 269 810 991 378 218 363 . 468 963 313 . 705 672 1791 888 868 Parts 611 | . 27 8 51 33 . . . 19 56 17 4 . 7 28 40 16 16 16 . 10 46 9 . 7 18 97 35 51 Haulers Intercepted 12 | . 2 . . 3 . . . . 5 . . . . 1 . . . . . . 1 . . . . . . . Recyclers Shooed 1 | . . . . . . . . . 1 . . . . . . . . . . . . . . . . . . . Parts Field Recycled . | . . . . . . . . . . . . . . . . . . . . . . . . . . . . . Retrieved Matter . | . . . . . . . . . . . . . . . . . . . . . . . . . . . . . Parts Self-Destructed 66 | . . . . . 1 . . 14 . 14 2 . 11 . . . . . . . . 6 . . 18 . . . Prevented 6 | . . . . . 3 . . . . . . . . . . . . . . . . . 3 . . . . . Parts Restored . | . . . . . . . . . . . . . . . . . . . . . . . . . . . . . Kills | -11 -10 -10 -8 -7 -7 -7 -7 -6 -6 -6 -6 -6 -5 -5 -5 -5 -5 -5 -4 -4 -4 -4 -4 -4 -3 -3 -3 -3 ------- Run | Yrd Mat Sub Mat Fac Low Low Dat Pro Fac Low Low Zio Pro Fac Ext Cet Arc Hub Fac Was Fac Upp Upp War Pro Res Qua Sec Combat Hostiles Destroyed 232 | . 8 4 14 10 . . . 17 21 10 3 . 6 11 14 5 . 3 . 2 10 11 . 24 11 28 8 12 Melee 15 | . . . . 3 . . . 1 3 . . . . . . . . . . . . . . . . . . 8 Guns 63 | . 6 1 6 . . . . . 15 . . . . . 1 5 . 3 . 2 9 . . . . 15 . . Cannons 64 | . . 1 2 . . . . . 2 6 1 . 3 6 9 . . . . . . 1 . 5 10 10 5 3 AOE 78 | . 2 2 6 7 . . . 16 . 4 2 . 3 5 . . . . . . 1 10 . 19 1 . . . Classes Destroyed 25 | . 4 1 5 3 . . . . 2 1 . . . . 1 . . . . 1 . . . 4 1 . 2 . Worker 21 | . . . 4 2 . . . . 2 . . . . 2 . . . 3 . . 3 . . . . 3 2 . Builder 6 | . . . 3 1 . . . . . . . . . . . . . 1 . . 1 . . . . . . . Hauler 12 | . 2 . . 3 . . . . 5 . . . . 1 . . . . . . 1 . . . . . . . Recycler 4 | . . . . 1 . . . . 1 . . . . . . . . . . . 2 . . . . . . . Mechanic 3 | . . . . 1 . . . . . . . . . . . . . . . . . . . 1 . . 1 . Operator 12 | . . . 2 1 . . . . 1 . . . . . 1 . 5 . . . 1 . . . . . . 1 Drone 1 | . . . . . . . . . . . . . . . . . . . . . . . . . 1 . . . Watcher 27 | . 2 . 1 . . . . . 4 . . . . 5 2 1 . 3 . . 1 . . . . 5 2 1 Swarmer 64 | . 2 . 4 7 . . . 14 . 4 3 . 1 4 3 . . . . . 4 4 . 4 . 10 . . Grunt 68 | . 6 . 5 1 . . . 3 6 4 . . 3 3 5 . . 1 . . . 3 . 11 9 4 4 . Brawler 5 | . . . . . . . . . 1 . . . 1 . . . . . . . . 1 . 2 . . . . Duelist 4 | . . . . . . . . . . 2 . . 1 . . . . . . . . . . 1 . . . . Protector 1 | . . . . . . . . . . . . . . . . . . . . . . . . 1 . . . . Researcher 3 | . . . . . . . . . . . . . . . . . . . . . . . . . . . 2 1 Sentry 24 | . . . 4 . . . . . 4 . . . . 4 4 . . . . . 2 . . . . 4 . 2 Specialist 5 | . . . . . . . . . . . . . . . . . . . . . . . . 2 . . 3 . Hunter 9 | . . . 1 . . . . . 3 . . . . . . . . . . . . 2 . 1 . 2 . . Programmer 30 | . . . . 2 . . . . 5 . . . . . . . . 1 . . 4 . . . . 8 . 10 Behemoth 4 | . . . . . . . . . . . . . . . 2 . . . . . . 1 . . 1 . . . Compactor 2 | . . . . . . . . . . . . . . . . . . . . 2 . . . . . . . . Cetus Guard 5 | . . . . . . . . . . . . . . . . 5 . . . . . . . . . . . . Lightning 1 | . . . . . . . . . . . . . . . . . . 1 . . . . . . . . . . Striker 1 | . . . . . . . . . . . . . . . . . . . . . . . . 1 . . . . Executioner 1 | . . . . . . . . . . . . . . . . . . . . . . . . 1 . . . . Alpha 7 1 | . . . . . . . . . . . . . . . . . . . . . . . . . . . 1 . Subdweller 4 | . . 4 . . . . . . . . . . . . . . . . . . . . . . . . . . Assembled 2 | . . . . . . . . . 2 . . . . . . . . . . . . . . . . . . . Butcher 2 | . . . . . . . . . . . . . . . 1 . 1 . . . . . . . . . . . Best Kill Streak 14 | . 3 2 7 5 . . . 10 6 4 3 . 4 7 4 3 3 4 . 1 7 4 . 14 8 12 4 2 Combat Bots Only 13 | . 2 2 6 4 . . . 10 3 4 3 . 4 5 4 3 . 2 . 1 4 4 . 13 8 11 3 2 Max Kills in Single Turn 5 | . 2 1 3 3 . . . 4 2 2 2 . 2 5 1 1 1 4 . 1 2 4 . 5 1 1 1 1 Gunslinging 1 | . . . . . . . . . 1 . . . . . . . . . . . . . . . . . . . Exploded 4 | . 2 1 3 2 . . . 4 . 2 2 . 2 3 . . . . . . 1 4 . 4 1 . . . Melee 1 | . . . . 1 . . . 1 1 . . . . . . . . . . . . . . . . . . 1 Uniques/NPCs Destroyed . | . . . . . . . . . . . . . . . . . . . . . . . . . . . . . Combat | -11 -10 -10 -8 -7 -7 -7 -7 -6 -6 -6 -6 -6 -5 -5 -5 -5 -5 -5 -4 -4 -4 -4 -4 -4 -3 -3 -3 -3 -------- Run | Yrd Mat Sub Mat Fac Low Low Dat Pro Fac Low Low Zio Pro Fac Ext Cet Arc Hub Fac Was Fac Upp Upp War Pro Res Qua Sec Hostile Shots Fired 1597 | . 18 28 126 51 2 6 . 32 133 36 7 . 8 16 54 8 . 91 . . 182 9 . 29 77 154 71 459 Missed 572 | . 4 6 34 21 2 4 . 12 55 18 5 . 4 7 12 5 . 24 . . 50 4 . 14 34 70 28 159 Hits 1025 | . 14 22 92 30 . 2 . 20 78 18 2 . 4 9 42 3 . 67 . . 132 5 . 15 43 84 43 300 Melee 1 | . . . . . . . . . . . . . . . . . . . . . 1 . . . . . . . Projectile 1024 | . 14 22 92 30 . 2 . 20 78 18 2 . 4 9 42 3 . 67 . . 131 5 . 15 43 84 43 300 AOE 1 | . . . . . . . . . . . . . . . . . . . . . 1 . . . . . . . Critical Strikes 67 | . . . 3 2 . . . 2 . 1 . . . 1 3 . . 15 . . 5 . . . 4 5 4 22 Actively Blocked 1 | . . . . . . . . . . . . . . . . . . . . . 1 . . . . . . . Part Disruptions 5 | . . . . . . . . . . . . . . . . . . 2 . . 1 . 1 . . . . 1 Damage Taken 21718 | . 264 597 1354 556 63 43 . 364 949 333 29 . 76 164 933 70 . 2311 108 . 2985 25 64 319 630 1811 948 6722 Core 4145 | . 36 151 315 200 42 18 . 170 139 44 16 . . 42 195 . . 485 . . 455 . 38 9 40 219 188 1343 Absorbed by Shields 91 | . . . . . . . . . . . . . . . . 42 . . . . . . . 49 . . . . Redirected to Shielding 318 | . . . . . . . . . . . . . . . 77 23 . 121 . . 97 . . . . . . . Ignored by Resistances 450 | . . . . . . . . . . . . . . 5 . . . . . . . . . . 273 9 72 91 Regen/Repaired (Parts) 2477 | . . . . 54 . . . . 243 139 . 597 . 46 377 15 . . 4 21 42 . . 6 . . 155 778 Core Remaining (%) 51 | 100 . 25 42 . . . . 38 . . . . 76 . . . . 27 . . . . . . 52 . . . Volleys Fired 802 | . 22 34 69 14 . . . 9 34 16 3 1 11 34 39 14 18 14 . 10 56 16 . 33 63 180 73 39 Largest 4 | . 2 2 3 1 . . . 1 4 3 3 1 3 3 3 3 3 3 . 3 3 1 . 1 1 1 1 1 Hottest 350 | . 90 58 126 35 . . . 46 350 160 160 35 160 160 160 240 105 105 . 105 110 55 . 56 56 110 300 120 Shots Fired 1293 | . 44 64 113 15 . . . 8 95 42 7 1 28 83 103 39 54 41 . 30 129 16 . 33 63 178 71 36 Gun 634 | . 41 35 84 4 . . . . 80 . . . . . 19 39 54 41 . 30 122 . . . . 85 . . Cannon 588 | . 3 26 18 . . . . . 15 40 6 1 26 81 84 . . . . . 4 3 . 19 62 93 71 36 Launcher 71 | . . 3 11 11 . . . 8 . 2 1 . 2 2 . . . . . . 3 13 . 14 1 . . . Special . | . . . . . . . . . . . . . . . . . . . . . . . . . . . . . Kinetic 514 | . 7 64 62 4 . . . . 4 . . . . . . 38 54 41 . 30 126 3 . 19 62 . . . Thermal 481 | . . . 10 . . . . . 91 40 6 1 26 81 103 1 . . . . . . . . . 60 41 21 Explosive 63 | . . . 6 11 . . . 8 . 2 1 . 2 2 . . . . . . 3 13 . 14 1 . . . Electromagnetic 135 | . 37 . 35 . . . . . . . . . . . . . . . . . . . . . . 34 24 5 Entropic 29 | . . . . . . . . . . . . . . . . . . . . . . . . . . 13 6 10 Phasic 71 | . . . . . . . . . . . . . . . . . . . . . . . . . . 71 . . Robot Hit Streak 34 | . 6 34 13 3 . . . 7 22 5 5 . 7 15 23 9 5 8 . 7 7 3 . 4 13 9 21 12 Robot Miss Streak 7 | . 3 2 4 2 . . . 1 3 6 1 . 3 5 2 4 7 2 . 2 7 1 . 2 5 4 4 2 Penetration Max 1 | . . . . . . . . . . . . . . . . 1 . 1 . . 1 . . 1 1 . . . Secondary Targets 5 | . . . . . . . . . 1 . . . . . . 1 . 1 . . 2 . . . . . . . Max Gunslinging Chain 1 | . . . . . . . . . 1 . . . . . . 1 . 1 . . 1 . . . . . . . Capacitor 277 | . . . . . . . . . . . . . . . . . . . . . . . . . . 178 70 29 Shots Hit Robots 863 | . 34 54 67 32 . . . 8 89 23 5 . 12 43 73 25 27 27 . 16 49 2 . 11 41 91 52 82 Core Hits 579 | . 21 15 38 23 . . . 18 78 14 3 . 16 27 27 12 15 21 . 4 31 24 . 64 20 50 18 40 Critical Kills 34 | . . . . . . . . . 2 . . . . . 1 3 3 1 . 2 6 . . 5 9 . 2 . Critical Parts Destroyed 37 | . . . . . . . . . 2 . . . . . . 4 3 3 . 1 6 . . 3 14 . 1 . Critical Strikes 101 | . . . 1 2 . . . . 4 . . . . . 3 8 7 4 . 4 12 . . 8 32 6 4 6 Burn 2 | . . . . . . . . . . . . . . . 2 . . . . . . . . . . . . . Meltdown 3 | . . . . . . . . . . . . . . . 1 . . . . . . . . . . . 2 . Destroy 76 | . . . . . . . . . . . . . . . . 8 7 4 . 4 12 . . 8 32 . 1 . Blast 1 | . . . 1 . . . . . . . . . . . . . . . . . . . . . . . . . Corrupt 4 | . . . . . . . . . . . . . . . . . . . . . . . . . . 3 1 . Smash 4 | . . . . . . . . . 4 . . . . . . . . . . . . . . . . . . . Sever 6 | . . . . 2 . . . . . . . . . . . . . . . . . . . . . . . 4 Sunder 3 | . . . . . . . . . . . . . . . . . . . . . . . . . . 1 . 2 Intensify 2 | . . . . . . . . . . . . . . . . . . . . . . . . . . 2 . . Melee Attacks 257 | . 1 . . 62 4 6 . 4 63 . . . . . . . . . . . . . . . . . . 117 Impact 40 | . . . . 1 . . . . 39 . . . . . . . . . . . . . . . . . . . Slashing 192 | . 1 . . 61 4 5 . 4 . . . . . . . . . . . . . . . . . . . 117 Piercing 25 | . . . . . . 1 . . 24 . . . . . . . . . . . . . . . . . . . Sneak Attacks 16 | . . . . 6 . . . . 9 . . . . . . . . . . . . . . . . . . 1 Combat Hostiles . | . . . . . . . . . . . . . . . . . . . . . . . . . . . . . Follow-up Attacks 1 | . . . . . . . . 1 . . . . . . . . . . . . . . . . . . . . Damage Inflicted 43058 | . 618 1136 1856 2118 . . . 2237 3308 1333 289 . 963 2283 2531 1056 1016 1579 . 499 1936 1671 . 4586 1012 4330 2159 4542 Guns 11426 | . 463 504 964 . . . . . 1622 . . . . . 490 1056 1016 1075 . 499 1776 . . . . 1961 . . Cannons 12554 | . 17 405 188 . . . . . 233 782 130 . 470 1340 2041 . . . . . 71 77 . 265 910 2369 2159 1097 Explosions 13020 | . 138 227 704 923 . . . 2157 . 551 159 . 493 943 . . . 504 . . 89 1594 . 4321 102 . . 115 Melee 6058 | . . . . 1195 . . . 80 1453 . . . . . . . . . . . . . . . . . . 3330 Ramming . | . . . . . . . . . . . . . . . . . . . . . . . . . . . . . Kinetic 8965 | . 41 1136 1012 . . . . . 31 . . . . . . 1056 1016 1075 . 499 1847 77 . 265 910 . . . Thermal 10851 | . 138 . 126 . . . . . 1824 782 130 . 470 1671 2531 . . . . . . . . . . 1199 1284 696 Explosive 11400 | . . . 284 923 . . . 2157 . 551 159 . 493 612 . . . . . . 89 1594 . 4321 102 . . 115 Electromagnetic 2843 | . 439 . 434 . . . . . . . . . . . . . . 504 . . . . . . . 691 667 108 Impact 1224 | . . . . . . . . . 1224 . . . . . . . . . . . . . . . . . . . Slashing 4605 | . . . . 1195 . . . 80 . . . . . . . . . . . . . . . . . . . 3330 Piercing 229 | . . . . . . . . . 229 . . . . . . . . . . . . . . . . . . . Entropic 1049 | . . . . . . . . . . . . . . . . . . . . . . . . . . 548 208 293 Phasic 1892 | . . . . . . . . . . . . . . . . . . . . . . . . . . 1892 . . Highest Corruption 52 | . . . . 42 42 42 42 52 1 . . . . 3 . 5 5 28 . 20 35 35 35 35 1 7 13 35 Average Corruption 19 | . . . . 16 42 42 42 52 1 . . . . 2 . 5 3 7 . 14 25 35 35 3 1 3 8 20 Corruption Purged 15 | . . . . . . . . . 1 . . . . 3 . . 5 . . . . . . . . . . 6 Corruption Blocked . | . . . . . . . . . . . . . . . . . . . . . . . . . . . . . Effects 398 | . . . . 47 19 17 1 35 . . . . . 2 . 7 6 3 . 6 81 19 14 4 3 19 24 91 Message Errors 81 | . . . . 8 5 6 . 6 . . . . . 1 . 1 1 . . 3 13 5 4 1 . 6 6 15 Matter Fused 88 | . . . . 6 3 5 1 7 . . . . . . . 2 2 . . 2 21 3 5 1 . 3 4 23 Heat Flow Errors 41 | . . . . 5 1 3 . 9 . . . . . . . 1 1 . . 1 3 4 3 . 1 . 2 7 Energy Discharges 45 | . . . . 4 3 1 . 4 . . . . . . . 2 1 1 . . 7 2 . . 1 2 3 14 Parts Rejected 3 | . . . . . . . . . . . . . . . . . . . . . 1 . . . . . . 2 Parts Fused 10 | . . . . 2 . . . . . . . . . . . . 1 . . . . 1 . 1 . 2 1 2 Data Loss (minor) 43 | . . . . 10 4 1 . 2 . . . . . 1 . . . . . . 7 2 2 . 1 1 4 8 Data Loss (major) 12 | . . . . 2 . . . 3 . . . . . . . . . . . . 1 1 . 1 . 2 . 2 Misfires 6 | . . . . 3 . . . . . . . . . . . . . . . . 2 . . . . . 1 . Alerts 9 | . . . . 2 1 . . . . . . . . . . . . 1 . . 2 1 . . . 1 . 1 Misdirections 40 | . . . . 3 2 1 . 3 . . . . . . . . . . . . 17 . . . . . . 14 Weapon Failures 20 | . . . . 2 . . . 1 . . . . . . . 1 . 1 . . 7 . . . . 2 3 3 Overload Shots 2 | . . . . . . . . . . . . . . . . 1 . . . . . . . . . . . 1 Overflow Damage 1803 | . 16 . 16 123 . . . 139 819 22 . . 10 90 45 . . . . . . 10 . 28 21 35 186 243 Projectiles 522 | . . . . . . . . . 91 15 . . 10 . 45 . . . . . . . . . . 35 186 140 Explosions 314 | . 16 . 16 17 . . . 109 . 7 . . . 90 . . . . . . . 10 . 28 21 . . . Melee 967 | . . . . 106 . . . 30 728 . . . . . . . . . . . . . . . . . . 103 Knockbacks 10 | . 1 3 3 . . . . . 3 . . . . . . . . . . . . . . . . . . . Impact 2 | . . . . . . . . . 2 . . . . . . . . . . . . . . . . . . . Kinetic 7 | . 1 3 3 . . . . . . . . . . . . . . . . . . . . . . . . . Secondary 1 | . . . . . . . . . 1 . . . . . . . . . . . . . . . . . . . Self-Inflicted Damage 359 | . 36 . 55 65 . . . 24 . . . . . . . . . 92 . . 87 . . . . . . . Shots 9 | . 1 . 1 2 . . . 1 . . . . . . . . . 1 . . 3 . . . . . . . Rammed . | . . . . . . . . . . . . . . . . . . . . . . . . . . . . . Targets Rammed . | . . . . . . . . . . . . . . . . . . . . . . . . . . . . . Kicked . | . . . . . . . . . . . . . . . . . . . . . . . . . . . . . Crushed . | . . . . . . . . . . . . . . . . . . . . . . . . . . . . . Highest Temperature 377 | . 240 . 222 251 233 259 . 280 319 175 122 . 77 225 377 188 171 99 . 120 354 243 220 30 261 32 161 313 Average Temperature 65 | . 74 . 71 42 94 100 . 108 96 74 66 . 32 56 83 61 27 25 . 45 70 80 64 9 50 11 79 81 Received Heat Transfer 3083 | . 99 36 423 . . . . 126 249 126 . . 36 45 781 . . 162 . . 57 . . 38 162 177 81 485 Effects 4 | . 1 . . . . . . 1 1 . . . . . . . . . . . . . . . . . . 1 Energy Bleed 1 | . . . . . . . . 1 . . . . . . . . . . . . . . . . . . . . Interference 2 | . 1 . . . . . . . . . . . . . . . . . . . . . . . . . . 1 Damage (minor) 1 | . . . . . . . . . 1 . . . . . . . . . . . . . . . . . . . Siege Activations . | . . . . . . . . . . . . . . . . . . . . . . . . . . . . . Martial Activations . | . . . . . . . . . . . . . . . . . . . . . . . . . . . . . Shielding Activations . | . . . . . . . . . . . . . . . . . . . . . . . . . . . . . Robots Disrupted 3 | . . . . . . . . . . . . . . . . . . . . . . . . . . 3 . . Combat Hostiles 3 | . . . . . . . . . . . . . . . . . . . . . . . . . . 3 . . Robots Corrupted 11 | . . . . . . . . . 5 . . . . . . . . . . . . . . . . 4 1 1 Combat Hostiles 5 | . . . . . . . . . . . . . . . . . . . . . . . . . . 3 1 1 Parts Fried 26 | . 4 . 1 . . . . . 10 . . . . . 1 . . 1 . . . . . . . 4 3 2 Impact Corruptions 21 | . . . . . . . . . 21 . . . . . . . . . . . . . . . . . . . Robots Melted 7 | . . . . . . . . . 1 . . . . . 4 . . . . . . . . . . . 2 . Combat Hostiles 7 | . . . . . . . . . 1 . . . . . 4 . . . . . . . . . . . 2 . Parts Melted 40 | . . . . . . . . . 8 2 . . 2 9 10 . . . . . . . . . . 1 6 2 Heat Transferred 15850 | . 150 . 187 . . . . . 3823 1122 200 . 674 2207 3862 . . . . . . . . . . 1320 1750 555 Parts Sabotaged . | . . . . . . . . . . . . . . . . . . . . . . . . . . . . . Parts Stolen . | . . . . . . . . . . . . . . . . . . . . . . . . . . . . . Parts Stripped . | . . . . . . . . . . . . . . . . . . . . . . . . . . . . . Power Chain Reactions 4 | . 2 . 2 . . . . . . . . . . . . . . . . . . . . . . . . . Alert | -11 -10 -10 -8 -7 -7 -7 -7 -6 -6 -6 -6 -6 -5 -5 -5 -5 -5 -5 -4 -4 -4 -4 -4 -4 -3 -3 -3 -3 ------- Run | Yrd Mat Sub Mat Fac Low Low Dat Pro Fac Low Low Zio Pro Fac Ext Cet Arc Hub Fac Was Fac Upp Upp War Pro Res Qua Sec Maximum Alert Level 5 | . . . 1 2 . . . . 2 . . . . 1 2 1 1 3 2 . 4 . . . . 5 4 2 Low Security (%) 30 | 100 100 . 17 5 . . . . 62 . . . . 64 46 . 1 2 . 100 6 . . . . . . . Level 1 32 | . . . 82 44 . . . . 32 . . . . 35 48 99 98 59 25 . 23 . . . . 19 . . Level 2 22 | . . . . 49 . . . . 5 . . . . . 5 . . 3 75 . 32 . . . . 15 . 100 Level 3 10 | . . . . . . . . . . . . . . . . . . 34 . . 28 . . . . 39 83 . Level 4 3 | . . . . . . . . . . . . . . . . . . . . . 8 . . . . 19 16 . Level 5 . | . . . . . . . . . . . . . . . . . . . . . . . . . . 5 . . High Security . | . . . . . . . . . . . . . . . . . . . . . . . . . . . . . Max Security . | . . . . . . . . . . . . . . . . . . . . . . . . . . . . . Sterilizations 1 | . . . 1 . . . . . . . . . . . . . . . . . . . . . . . . . Peak Influence 1637 | . 95 . 339 644 . . . . 419 . . . . 336 415 356 369 1026 452 131 1141 . . . . 1637 1116 604 Initial 911 | . . . . 79 . . . . 69 . . . . 157 83 201 116 86 452 131 32 . . . . 321 911 591 Average 374 | . 29 . 236 372 . . . . 155 . . . . 192 214 295 305 558 416 92 550 . . . . 857 1039 503 Influence Increases 14446 | . 300 . 671 1046 30 . . 400 933 305 70 . 359 581 942 375 323 1439 15 56 1976 260 . 636 370 2094 491 774 Destroy 0b10 Robot/C 6000 | . 160 . 280 320 . . . 340 380 200 60 . 240 240 540 140 80 200 . . 500 220 . 520 200 900 220 260 Destroy 0b10 Robot/NC 515 | . 20 . 50 45 . . . . 65 . . . . 40 15 10 25 60 . . 75 . . 10 5 55 25 15 Destroy Leader 1050 | . 38 . 82 66 . . . 30 138 30 10 . 10 72 44 . . 58 . . 114 40 . . 30 202 14 72 Allied During Kill 1312 | . . . . 29 . . . . . . . . 94 25 276 150 105 258 . . 130 . . 76 . 161 8 . Successful Hack 306 | . 28 . . 71 . . . . 114 . . . . . . . . . . . 24 . . . . 36 29 4 Disable Machine 1200 | . 15 . 60 105 . . . . 30 . . . . 45 . 15 45 435 . . 195 . . . . 30 90 135 Anti-Garrison Action 950 | . . . 150 200 . . . . . . . . . . . . . . . . 400 . . . . 200 . . Destroy Structure 1508 | . 9 . 34 60 . . . . 41 . . . . 114 52 60 68 308 . 56 388 . . . . 210 30 78 Advance Influence 150 | . . . . . . . . . . . . . . . . . . . . . . . . . . 150 . . Partial Spotted 255 | . . . 15 90 . . . . . . . . . . . . . . 15 . 15 . . . . 75 . 45 Lose Combat Pursuer 1200 | . 30 . . 60 30 . . 30 165 75 . . 15 45 15 . . 120 . . 135 . . 30 135 75 75 165 Influence Decreases 13861 | . 300 . 495 629 390 185 48 290 626 498 256 38 108 662 751 446 364 763 563 386 885 612 280 806 451 728 1060 1241 Entered New Map 4770 | . . . . 97 220 45 48 . 41 156 44 38 . 94 87 160 174 163 473 246 15 422 150 506 336 84 710 461 Time Decay 6958 | . 288 . 394 422 170 140 . 270 575 342 212 . 48 478 464 206 170 180 80 100 470 190 130 200 105 474 270 580 Lost Part 823 | . 12 . 101 40 . . . 20 10 . . . . 10 20 . . 100 10 . 190 . . 10 10 50 40 200 Lost Ally 1310 | . . . . 70 . . . . . . . . 60 80 180 80 20 320 . 40 210 . . 90 . 120 40 . Squads Dispatched 67 | . . . 3 7 . . . 1 11 . . . 1 4 . . . 6 . . 10 . . . . 11 5 8 Investigation 16 | . . . . 3 . . . 1 4 . . . . 1 . . . 1 . . 2 . . . . 1 1 2 Extermination 19 | . . . . 1 . . . . 4 . . . . 2 . . . 1 . . 3 . . . . 4 1 3 Reinforcement 20 | . . . 1 3 . . . . 3 . . . . 1 . . . 2 . . 3 . . . . 4 1 2 Assault 9 | . . . 2 . . . . . . . . . 1 . . . . . . . 1 . . . . 2 2 1 Garrison 3 | . . . . . . . . . . . . . . . . . . 2 . . 1 . . . . . . . Intercept . | . . . . . . . . . . . . . . . . . . . . . . . . . . . . . Searches Triggered . | . . . . . . . . . . . . . . . . . . . . . . . . . . . . . Data Miner Redirects 6 | . . . . . . . . . . . . . . . . . . . . . 1 . . . . 2 2 1 Construction Impeded 3 | . . . . . . . . . . . . . . . . . . 1 . . 1 . . . . 1 . . Haulers Reinforced 6 | . . . . 1 . . . . 2 . . . . 1 . . . . . . 1 . . . . 1 . . Active Scanning Responses . | . . . . . . . . . . . . . . . . . . . . . . . . . . . . . Cargo Convoy Interrupts 1 | . . . . 1 . . . . . . . . . . . . . . . . . . . . . . . . Stealth | -11 -10 -10 -8 -7 -7 -7 -7 -6 -6 -6 -6 -6 -5 -5 -5 -5 -5 -5 -4 -4 -4 -4 -4 -4 -3 -3 -3 -3 --------- Run | Yrd Mat Sub Mat Fac Low Low Dat Pro Fac Low Low Zio Pro Fac Ext Cet Arc Hub Fac Was Fac Upp Upp War Pro Res Qua Sec Distress Signals 16 | . . . 3 . . . . . 4 . . . . . 1 2 . 1 . . 1 . . . . 1 1 2 Communications Jammed . | . . . . . . . . . . . . . . . . . . . . . . . . . . . . . Distress Signals . | . . . . . . . . . . . . . . . . . . . . . . . . . . . . . Times Spotted 557 | . 16 5 21 24 3 2 . 19 47 14 3 . 12 19 33 10 13 31 1 5 48 2 . 73 22 58 21 55 Peak Tracking Total 19 | . 3 2 7 4 1 1 . 6 5 4 3 . 7 6 10 5 1 15 1 3 10 4 . 19 12 5 5 14 Tactical Retreats 48 | . 1 . . 3 2 1 . 2 6 2 . . 1 3 1 . . 2 . . 3 . . 2 2 5 4 8 ECM-based Alert Blocks 8 | . . . . . . . . . . . . . . . . . . . . . 2 . . . . . . 6 Traps | -11 -10 -10 -8 -7 -7 -7 -7 -6 -6 -6 -6 -6 -5 -5 -5 -5 -5 -5 -4 -4 -4 -4 -4 -4 -3 -3 -3 -3 ------- Run | Yrd Mat Sub Mat Fac Low Low Dat Pro Fac Low Low Zio Pro Fac Ext Cet Arc Hub Fac Was Fac Upp Upp War Pro Res Qua Sec Traps Triggered 18 | . 1 3 . 1 1 . . . 3 . . . . . . . . . 2 . 2 . 1 . . . 2 2 Indirectly . | . . . . . . . . . . . . . . . . . . . . . . . . . . . . . Trap Hack Attempts . | . . . . . . . . . . . . . . . . . . . . . . . . . . . . . Triggered . | . . . . . . . . . . . . . . . . . . . . . . . . . . . . . Disarmed . | . . . . . . . . . . . . . . . . . . . . . . . . . . . . . Reprogrammed 2 | . . . . 2 . . . . . . . . . . . . . . . . . . . . . . . . Reused . | . . . . . . . . . . . . . . . . . . . . . . . . . . . . . Traps Extracted . | . . . . . . . . . . . . . . . . . . . . . . . . . . . . . Installed 1 | . . . . 1 . . . . . . . . . . . . . . . . . . . . . . . . Triggered . | . . . . . . . . . . . . . . . . . . . . . . . . . . . . . Most Traps Carried 2 | . . 2 2 2 . . . . . . . . . . . . . . . . . . . . . . . . Machines | -11 -10 -10 -8 -7 -7 -7 -7 -6 -6 -6 -6 -6 -5 -5 -5 -5 -5 -5 -4 -4 -4 -4 -4 -4 -3 -3 -3 -3 ---------- Run | Yrd Mat Sub Mat Fac Low Low Dat Pro Fac Low Low Zio Pro Fac Ext Cet Arc Hub Fac Was Fac Upp Upp War Pro Res Qua Sec Machines Disabled 89 | . 1 1 5 7 . 1 . 2 2 . . . 2 3 1 1 3 29 . . 13 . . . . 2 7 9 Max in Single Turn 26 | . 1 1 2 2 . 1 . 1 1 . . . 1 3 1 1 1 26 . . 2 . . . . 1 1 2 Garrison Access 11 | . . . 1 2 . . . . 2 . . . . 1 . . . 1 . . 3 . . . . 1 . . Network Hub 1 | . . . . . . . . . . . . . . . . . . 1 . . . . . . . . . . Machines Repaired . | . . . . . . . . . . . . . . . . . . . . . . . . . . . . . Machines Dismantled . | . . . . . . . . . . . . . . . . . . . . . . . . . . . . . Machines Sabotaged . | . . . . . . . . . . . . . . . . . . . . . . . . . . . . . Overloaded Fab Kills . | . . . . . . . . . . . . . . . . . . . . . . . . . . . . . Hacking | -11 -10 -10 -8 -7 -7 -7 -7 -6 -6 -6 -6 -6 -5 -5 -5 -5 -5 -5 -4 -4 -4 -4 -4 -4 -3 -3 -3 -3 --------- Run | Yrd Mat Sub Mat Fac Low Low Dat Pro Fac Low Low Zio Pro Fac Ext Cet Arc Hub Fac Was Fac Upp Upp War Pro Res Qua Sec Machines Accessed 98 | . 6 4 4 19 2 . 4 1 21 1 . . . 5 2 1 . 1 . . 7 . 1 5 . 4 3 7 Terminals 34 | . 6 . 3 9 . . . 1 8 . . . . . . 1 . . . . . . . . . 1 1 4 Fabricators 12 | . . . . 3 . . . . 4 . . . . 3 . . . . . . 2 . . . . . . . Repair Stations 8 | . . . . 1 . . . . 3 . . . . . 1 . . . . . 1 . . . . . 1 1 Recycling Units 6 | . . . . 2 . . . . 2 . . . . 1 1 . . . . . . . . . . . . . Scanalyzers 9 | . . . . 1 . . . . 2 . . . . . . . . . . . 1 . . . . 2 1 2 Garrison Access 12 | . . . 1 3 . . . . 2 . . . . 1 . . . 1 . . 3 . . . . 1 . . Total Hacks 325 | . 23 8 10 81 5 . 28 4 77 1 . . . 13 7 3 . 2 . . 15 . 1 10 . 13 9 15 Successful 185 | . 13 8 2 41 5 . 28 4 44 1 . . . 6 4 . . 1 . . 5 . 1 10 . 5 3 4 Failed 138 | . 10 . 8 39 . . . . 33 . . . . 7 3 3 . 1 . . 10 . . . . 8 5 11 Catastrophic 32 | . 1 . 2 10 . . . . 5 . . . . 3 . 2 . . . . 3 . . . . 2 . 4 Database Lockouts 2 | . . . . 1 . . . . . . . . . . . . . . . . . . . . . . 1 . Manual 267 | . 17 . 7 37 . . . . 26 . . . . 31 31 1 . 6 5 . 38 . . 1 . 35 21 11 Terminals 137 | . 23 . 8 46 . . . 4 37 . . . . . . 3 . . . . . . . . . 3 4 9 Fabricators 39 | . . . . 11 . . . . 13 . . . . 11 . . . . . . 4 . . . . . . . Repair Stations 18 | . . . . 2 . . . . 6 . . . . . 3 . . . . . 2 . . . . . 3 2 Recycling Units 14 | . . . . 6 . . . . 3 . . . . 1 4 . . . . . . . . . . . . . Scanalyzers 42 | . . . . 12 . . . . 14 . . . . . . . . . . . 1 . . . . 9 2 4 Garrison Access 22 | . . . 2 4 . . . . 4 . . . . 1 . . . 2 . . 8 . . . . 1 . . Terminal Hacks 87 | . 6 8 1 9 5 . 28 4 10 1 . . . . . . . . . . . . 1 10 . 1 . 3 Record 29 | . . 5 . . 4 . 11 4 . . . . . . . . . . . . . . . 5 . . . . Part Schematic 10 | . . . . 1 . . 8 . 1 . . . . . . . . . . . . . . . . . . . Robot Schematic 6 | . . . . . . . 6 . . . . . . . . . . . . . . . . . . . . . Robot Analysis 4 | . 2 . . . . . . . 2 . . . . . . . . . . . . . . . . . . . Prototype ID Bank 8 | . . . . . . . 3 . 1 . . . . . . . . . . . . . . 4 . . . . Open Door 9 | . . 1 . . 1 . . . . 1 . . . . . . . . . . . . 1 1 . 1 . 3 Branch Access Points 2 | . . . . 1 . . . . 1 . . . . . . . . . . . . . . . . . . . Terminal Index 1 | . 1 . . . . . . . . . . . . . . . . . . . . . . . . . . . Locate Traps 7 | . 2 . 1 2 . . . . 2 . . . . . . . . . . . . . . . . . . . Reprogram Traps 1 | . . . . 1 . . . . . . . . . . . . . . . . . . . . . . . . Hauler Manifests 2 | . . . . 2 . . . . . . . . . . . . . . . . . . . . . . . . Registered Components 1 | . . . . 1 . . . . . . . . . . . . . . . . . . . . . . . . Registered Prototypes 2 | . . . . 1 . . . . 1 . . . . . . . . . . . . . . . . . . . Zone Layout 3 | . 1 . . . . . . . 2 . . . . . . . . . . . . . . . . . . . Proto ID Catalog 1 | . . 1 . . . . . . . . . . . . . . . . . . . . . . . . . . Release Object 1 | . . 1 . . . . . . . . . . . . . . . . . . . . . . . . . . Fabricator Hacks 15 | . . . . 5 . . . . 6 . . . . 3 . . . . . . 1 . . . . . . . Network Status 2 | . . . . 1 . . . . 1 . . . . . . . . . . . . . . . . . . . Load Schematic 7 | . . . . 1 . . . . 3 . . . . 2 . . . . . . 1 . . . . . . . Build 6 | . . . . 3 . . . . 2 . . . . 1 . . . . . . . . . . . . . . Repair Station Hacks 13 | . . . . 2 . . . . 5 . . . . . 3 . . . . . 1 . . . . . 2 . Scan Component 8 | . . . . 1 . . . . 3 . . . . . 2 . . . . . 1 . . . . . 1 . Repair 5 | . . . . 1 . . . . 2 . . . . . 1 . . . . . . . . . . . 1 . Recycling Unit Hacks 6 | . . . . 2 . . . . 2 . . . . 1 1 . . . . . . . . . . . . . Retrieve Components 6 | . . . . 2 . . . . 2 . . . . 1 1 . . . . . . . . . . . . . Scanalyzer 26 | . . . . 9 . . . . 13 . . . . . . . . . . . . . . . . 3 1 . Insert Component 8 | . . . . 4 . . . . 4 . . . . . . . . . . . . . . . . . . . Analyze 9 | . . . . 3 . . . . 6 . . . . . . . . . . . . . . . . . . . Retrieve Study 9 | . . . . 2 . . . . 3 . . . . . . . . . . . . . . . . 3 1 . Garrison Access Hacks 6 | . . . . 1 . . . . 2 . . . . 1 . . . 1 . . 1 . . . . . . . Seal Access 6 | . . . . 1 . . . . 2 . . . . 1 . . . 1 . . 1 . . . . . . . Unauthorized Hacks 32 | . 7 . 1 13 . . . . 6 . . . . 1 . . . . . . 2 . . . . 1 . 1 Terminals 20 | . 7 . 1 8 . . . . 4 . . . . . . . . . . . . . . . . . . . Track 1 | . . . . 1 . . . . . . . . . . . . . . . . . . . . . . . . Assimilate 1 | . . . . 1 . . . . . . . . . . . . . . . . . . . . . . . . Botnet 16 | . 6 . 1 5 . . . . 4 . . . . . . . . . . . . . . . . . . . Disrupt 1 | . . . . 1 . . . . . . . . . . . . . . . . . . . . . . . . Operators 1 | . 1 . . . . . . . . . . . . . . . . . . . . . . . . . . . Fabricators 6 | . . . . 3 . . . . 2 . . . . 1 . . . . . . . . . . . . . . Report 1 | . . . . 1 . . . . . . . . . . . . . . . . . . . . . . . . Prioritize 4 | . . . . 1 . . . . 2 . . . . 1 . . . . . . . . . . . . . . Liberate 1 | . . . . 1 . . . . . . . . . . . . . . . . . . . . . . . . Repair Stations 1 | . . . . . . . . . . . . . . . . . . . . . . . . . . . . 1 Patch 1 | . . . . . . . . . . . . . . . . . . . . . . . . . . . . 1 Recycling Units 1 | . . . . 1 . . . . . . . . . . . . . . . . . . . . . . . . Recyclers 1 | . . . . 1 . . . . . . . . . . . . . . . . . . . . . . . . Scanalyzers . | . . . . . . . . . . . . . . . . . . . . . . . . . . . . . Garrison Access 4 | . . . . 1 . . . . . . . . . . . . . . . . 2 . . . . 1 . . Jam 4 | . . . . 1 . . . . . . . . . . . . . . . . 2 . . . . 1 . . Data Cores Recovered 4 | . . . . 1 . . . . . . . . . . 1 . . . . . 2 . . . . . . . Used 1 | . . . . 1 . . . . . . . . . . . . . . . . . . . . . . . . Hacking Detections 62 | . 6 . 4 16 . . . 1 16 . . . . 3 2 1 . 1 . . 4 . . . . 2 2 4 Full Trace Events 10 | . 1 . 1 2 . . . 1 4 . . . . 1 . . . . . . . . . . . . . . Feedback Events 1 | . . . . 1 . . . . . . . . . . . . . . . . . . . . . . . . Corruption 1 | . . . . 1 . . . . . . . . . . . . . . . . . . . . . . . . Feedback Blocked . | . . . . . . . . . . . . . . . . . . . . . . . . . . . . . Robot Schematics Acquired 13 | . . . . . . . 6 . . . . 2 . . 3 . . . . . . . . . . . 1 1 Robots Built 3 | . . . . 3 . . . . . . . . . . . . . . . . . . . . . . . . Authchips . | . . . . . . . . . . . . . . . . . . . . . . . . . . . . . Time 67 | . . . . 67 . . . . . . . . . . . . . . . . . . . . . . . . Total Robot Build Rating 12 | . . . . 12 . . . . . . . . . . . . . . . . . . . . . . . . Part Schematics Acquired 136 | . . . . 4 . . 8 . 5 . . 15 . . 51 . . . . . 11 . . . . 11 27 4 Parts Built 7 | . . . . 3 . . . . 3 . . . . 1 . . . . . . . . . . . . . . Authchips . | . . . . . . . . . . . . . . . . . . . . . . . . . . . . . Time 305 | . . . . 122 . . . . 99 . . . . 84 . . . . . . . . . . . . . . Total Part Build Rating 32 | . . . . 11 . . . . 15 . . . . 6 . . . . . . . . . . . . . . Part Studies Acquired 9 | . . . . 2 . . . . 3 . . . . . . . . . . . . . . . . 3 1 . Parts Repaired 5 | . . . . 1 . . . . 2 . . . . . 1 . . . . . . . . . . . 1 . Time 243 | . . . . 32 . . . . 87 . . . . . 50 . . . . . . . . . . . 74 . Parts Recycled . | . . . . . . . . . . . . . . . . . . . . . . . . . . . . . Recycled Matter . | . . . . . . . . . . . . . . . . . . . . . . . . . . . . . Retrieved Matter . | . . . . . . . . . . . . . . . . . . . . . . . . . . . . . Retrieved Components 23 | . . . . . . . . . 10 . . . . 3 10 . . . . . . . . . . . . . Parts Scanalyzed 8 | . . . . 4 . . . . 4 . . . . . . . . . . . . . . . . . . . Part Schematics Acquired 7 | . . . . 3 . . . . 4 . . . . . . . . . . . . . . . . . . . Parts Damaged . | . . . . . . . . . . . . . . . . . . . . . . . . . . . . . Bothacking | -11 -10 -10 -8 -7 -7 -7 -7 -6 -6 -6 -6 -6 -5 -5 -5 -5 -5 -5 -4 -4 -4 -4 -4 -4 -3 -3 -3 -3 ------------ Run | Yrd Mat Sub Mat Fac Low Low Dat Pro Fac Low Low Zio Pro Fac Ext Cet Arc Hub Fac Was Fac Upp Upp War Pro Res Qua Sec Used RIF Installer . | . . . . . . . . . . . . . . . . . . . . . . . . . . . . . Robots Hacked . | . . . . . . . . . . . . . . . . . . . . . . . . . . . . . Non-combat . | . . . . . . . . . . . . . . . . . . . . . . . . . . . . . Combat . | . . . . . . . . . . . . . . . . . . . . . . . . . . . . . Robot Hacks Applied . | . . . . . . . . . . . . . . . . . . . . . . . . . . . . . Relay Couplers Released 4 | . . . 1 . . . . . . . . . . . . . . . . . 3 . . . . . . . Machine Destruction 1 | . . . 1 . . . . . . . . . . . . . . . . . . . . . . . . . Programmers 3 | . . . . . . . . . . . . . . . . . . . . . 3 . . . . . . . Fabnet Peak Effective % . | . . . . . . . . . . . . . . . . . . . . . . . . . . . . . Robots Rewired 22 | . . . . . . . . . . . . . 3 . 13 . . . . . . . . 5 . 1 . . Allies Hacked 1 | . . . . . . . . . . . . . . . . . . . . . . . . . . 1 . . Hacks Repelled . | . . . . . . . . . . . . . . . . . . . . . . . . . . . . . Allies | -11 -10 -10 -8 -7 -7 -7 -7 -6 -6 -6 -6 -6 -5 -5 -5 -5 -5 -5 -4 -4 -4 -4 -4 -4 -3 -3 -3 -3 -------- Run | Yrd Mat Sub Mat Fac Low Low Dat Pro Fac Low Low Zio Pro Fac Ext Cet Arc Hub Fac Was Fac Upp Upp War Pro Res Qua Sec Total Allies 87 | . . . . 4 3 . . . . . . 4 3 . 31 5 . . 1 19 4 . . 5 . 8 . . Largest Group 23 | . . . . 3 3 3 . . . . . 4 5 4 21 23 22 19 1 19 8 . . 5 . 3 2 . Highest-Rated Group 1316 | . . . . 90 60 60 . . . . . 152 201 136 1007 1316 1283 1035 27 702 317 . . 286 . 288 178 . Highest-Rated Ally 159 | . . . . 30 20 20 . . . . . 39 49 39 159 159 159 96 27 50 96 . . 68 . 103 90 . Zionite Dispatches 9 | . . . . . . . . . . . . . . . 3 . . . 1 . 2 . . . . 3 . . Heavy 2 | . . . . . . . . . . . . . . . 1 . . . . . . . . . . 1 . . Light 4 | . . . . . . . . . . . . . . . 2 . . . . . 1 . . . . 1 . . Demo 1 | . . . . . . . . . . . . . . . . . . . . . . . . . . 1 . . Infowar Resupply 1 | . . . . . . . . . . . . . . . . . . . 1 . . . . . . . . . Hover Resupply 1 | . . . . . . . . . . . . . . . . . . . . . 1 . . . . . . . Total Orders 11 | . . . . 1 . . . . . . . . . . . . . . 2 . 3 . . 5 . . . . STAY 4 | . . . . 1 . . . . . . . . . . . . . . 1 . . . . 2 . . . . FOLLOW 3 | . . . . . . . . . . . . . . . . . . . . . . . . 3 . . . . DROP 2 | . . . . . . . . . . . . . . . . . . . 1 . 1 . . . . . . . RETURN 2 | . . . . . . . . . . . . . . . . . . . . . 2 . . . . . . . Ally Attacks 618 | . . . . 19 . . . . . . . . 25 14 128 63 13 96 . 85 66 . . 27 . 71 11 . Total Damage 20624 | . . . . 415 . . . . . . . . 679 359 2918 1301 644 2605 . 3373 3212 . . 1577 . 3261 280 . Kills 100 | . . . . 6 . . . . . . . . 6 1 13 3 4 15 . 7 21 . . 3 . 20 1 . Allies Corrupted 12 | . . . . . . . . . . . . . . . . . . 8 . . 3 . . . . 1 . . Allies Melted 2 | . . . . . . . . . . . . . . 1 . . . . . . . . . 1 . . . . Intel | -11 -10 -10 -8 -7 -7 -7 -7 -6 -6 -6 -6 -6 -5 -5 -5 -5 -5 -5 -4 -4 -4 -4 -4 -4 -3 -3 -3 -3 ------- Run | Yrd Mat Sub Mat Fac Low Low Dat Pro Fac Low Low Zio Pro Fac Ext Cet Arc Hub Fac Was Fac Upp Upp War Pro Res Qua Sec Active Infowar (turns) 19916 | . 37 885 1063 1029 344 299 26 581 2069 708 518 740 734 1228 1169 424 279 240 157 209 1189 392 266 1263 481 1210 586 1790 Optics 14359 | . 37 . . 332 344 299 26 581 337 . 304 740 734 1228 1169 424 279 . 139 209 1189 392 266 1263 481 1210 586 1790 Sensors 15952 | . . 885 1022 1026 344 299 26 581 2044 694 518 740 705 1180 927 11 . 240 113 209 915 390 266 1100 . 340 338 1039 Terrain 5138 | . . . 130 28 . . . . . . . . . . . . . . 21 209 918 389 266 804 481 426 473 993 Structural 372 | . . . . 372 . . . . . . . . . . . . . . . . . . . . . . . . Traps 1 | . . . . . . . . . . . . . . . . . . . . . . . . . 1 . . . T.N.C. 997 | . . . 886 111 . . . . . . . . . . . . . . . . . . . . . . . . Cloaking 2092 | . . . . . . . . . 1275 604 213 . . . . . . . . . . . . . . . . . ECM 639 | . . . . . . . . . 1 . . . . . . . . . 7 . 429 . . . . 2 . 200 Robot Analysis Total 4 | . 2 . . . . . . . 2 . . . . . . . . . . . . . . . . . . . Derelict Logs Recovered 14 | . . 2 . . 1 1 . 2 . 1 2 1 1 . . . . . . . . 1 2 . . . . . Drone Launches 4 | . . . . . . . . . . . . . . . . . . . . . 4 . . . . . . . Drone Recoveries 4 | . . . . . . . . . . . . . . . . . . . . . 4 . . . . . . . Zionite Intel Received 38 | . . . . . . . . . . . . . . 7 7 . . 1 . . 8 . . . . 7 6 2 Main Access 2 | . . . . . . . . . . . . . . . . . . . . . 1 . . . . . . 1 Branch Access 1 | . . . . . . . . . . . . . . 1 . . . . . . . . . . . . . . Emergency Access 3 | . . . . . . . . . . . . . . . 1 . . . . . 1 . . . . 1 . . Guard Positions 3 | . . . . . . . . . . . . . . . 1 . . . . . . . . . . 1 1 . Component Stockpiles 2 | . . . . . . . . . . . . . . . . . . . . . 1 . . . . 1 . . Prototype Stockpiles 3 | . . . . . . . . . . . . . . 1 . . . . . . . . . . . 1 1 . Component Schematics 3 | . . . . . . . . . . . . . . . 2 . . . . . . . . . . . 1 . Prototype Schematics 5 | . . . . . . . . . . . . . . . 2 . . . . . 1 . . . . 1 1 . Unaware Schematics 1 | . . . . . . . . . . . . . . . 1 . . . . . . . . . . . . . Unaware Analyses 2 | . . . . . . . . . . . . . . 1 . . . . . . 1 . . . . . . . Trap Installations 2 | . . . . . . . . . . . . . . 1 . . . . . . . . . . . . . 1 Active Terminals 5 | . . . . . . . . . . . . . . 1 . . . 1 . . 1 . . . . 1 1 . Active Garrisons 3 | . . . . . . . . . . . . . . . . . . . . . 1 . . . . 1 1 . Depthwide Sectors/0 1 | . . . . . . . . . . . . . . 1 . . . . . . . . . . . . . . Depthwide Sectors/-1 2 | . . . . . . . . . . . . . . 1 . . . . . . 1 . . . . . . . Exploration | -11 -10 -10 -8 -7 -7 -7 -7 -6 -6 -6 -6 -6 -5 -5 -5 -5 -5 -5 -4 -4 -4 -4 -4 -4 -3 -3 -3 -3 ------------- Run | Yrd Mat Sub Mat Fac Low Low Dat Pro Fac Low Low Zio Pro Fac Ext Cet Arc Hub Fac Was Fac Upp Upp War Pro Res Qua Sec Turns Passed 21502 | 31 925 1162 1067 1029 344 299 26 581 2188 767 518 740 734 1228 1169 424 359 365 160 209 1189 392 266 1263 481 1210 586 1790 Spaces Moved 24998 | 27 609 548 632 2309 706 854 82 645 2631 847 900 965 816 1403 881 388 198 422 147 218 1434 713 651 1406 493 1631 670 1772 Core 213 | 3 . . 58 . . . . . . . . . . . . . . . 2 . . . . . . . . 150 Treads . | . . . . . . . . . . . . . . . . . . . . . . . . . . . . . Legs . | . . . . . . . . . . . . . . . . . . . . . . . . . . . . . Wheels 2240 | 24 609 548 574 . . . . 326 159 . . . . . . . . . . . . . . . . . . . Hover 18413 | . . . . . . . . 146 2472 847 900 965 816 1403 881 388 198 422 145 218 1434 713 651 1406 493 1631 670 1614 Flight 4124 | . . . . 2309 706 854 82 173 . . . . . . . . . . . . . . . . . . . . Fastest Speed 23 | 50 90 135 50 23 26 31 31 31 48 56 56 56 56 48 43 52 52 52 60 63 38 38 38 34 34 34 48 44 Average Speed 53 | 83 120 135 114 24 28 31 31 72 56 56 56 56 56 48 52 52 52 53 65 63 56 38 38 40 62 43 51 50 Slowest Speed 350 | 90 135 135 215 102 31 31 31 120 112 56 56 106 56 48 96 101 52 106 350 63 132 38 38 100 100 126 123 110 Overloaded Moves . | . . . . . . . . . . . . . . . . . . . . . . . . . . . . . Propulsion Burnouts . | . . . . . . . . . . . . . . . . . . . . . . . . . . . . . Robots Hopped 9 | . . . . 9 . . . . . . . . . . . . . . . . . . . . . . . . Potential Cave-ins 15 | . . . . . . . . . 1 . . . . . . . . . . . . . . . . 3 4 7 Cave-ins Triggered . | . . . . . . . . . . . . . . . . . . . . . . . . . . . . . Teleports 2 | . . . . . . . . . . . . . . . . . . . . . . . . . . . . 2 Spacefolds 4 | . . . . . . . . . . . . . . . . . . . . . . . . . . . . 4 Exploration Rate (%) 67 | 3 87 31 74 59 73 88 73 64 67 84 87 91 76 33 91 85 86 41 6 93 48 74 90 94 61 41 62 91 Regions Visited 28 Branch Regions 19 Pre-discovered Areas 24 | . . . . . 1 1 1 . . . . 1 . 14 . . . . . . 4 . 2 . . . . . Known Exits Taken 22 | . . . . 1 1 1 1 1 1 1 1 1 1 1 1 1 1 1 . . 1 1 1 1 1 1 1 . Unknown Exits Taken 4 | 1 1 1 1 . . . . . . . . . . . . . . . . . . . . . . . . . Scrap Searched 42 | . . 6 . . 3 8 . 4 . 4 4 4 4 . . . . . . . . 1 2 . 2 . . . Spaces Dug 189 | . . . 5 32 2 3 . 20 35 . . . 4 10 . . . . . 2 37 . . . . 16 1 22 Terrain Destroyed 1223 | . 7 30 32 64 2 3 . 69 41 51 13 . 30 76 16 23 43 214 . 9 129 144 . 96 25 51 16 39 Melee 81 | . . . . 22 2 3 . . 35 . . . . . . . . . . . . . . . . . . 19 Projectile 288 | . . . 1 3 . . . . 6 11 . . 9 23 16 23 43 24 . 9 42 1 . . . 51 16 10 AOE 853 | . 7 30 31 39 . . . 69 . 40 13 . 21 53 . . . 190 . . 86 143 . 96 25 . . 10 Terrain Rammed . | . . . . . . . . . . . . . . . . . . . . . . . . . . . . . Walls Destroyed . | . . . . . . . . . . . . . . . . . . . . . . . . . . . . . Machines Disabled . | . . . . . . . . . . . . . . . . . . . . . . . . . . . . . Actions | -11 -10 -10 -8 -7 -7 -7 -7 -6 -6 -6 -6 -6 -5 -5 -5 -5 -5 -5 -4 -4 -4 -4 -4 -4 -3 -3 -3 -3 --------- Run | Yrd Mat Sub Mat Fac Low Low Dat Pro Fac Low Low Zio Pro Fac Ext Cet Arc Hub Fac Was Fac Upp Upp War Pro Res Qua Sec Total 31936 | 32 756 899 875 2673 844 883 81 741 3147 1105 906 1153 1068 1894 1501 581 414 525 208 267 1695 818 669 2077 604 2128 913 2479 Wait 4544 | . 85 284 112 181 131 15 . 50 269 228 . 184 225 387 402 154 189 68 38 35 135 77 14 486 38 200 121 436 Move 24950 | 26 608 547 631 2291 705 853 81 644 2630 846 899 964 815 1402 880 387 197 421 147 217 1433 712 650 1405 492 1630 669 1768 Hop 8 | . . . . 8 . . . . . . . . . . . . . . . . . . . . . . . . Pick Up 168 | . 16 7 14 22 . 1 . 2 21 4 . . 1 13 5 5 1 1 2 2 7 4 1 11 1 9 7 11 Fast Attach 295 | 6 5 3 18 25 1 4 . 6 29 . 1 . . 19 14 5 3 7 7 1 30 1 . 27 2 29 11 41 Attach 112 | . 3 3 8 10 . . . 4 9 1 . . . 3 5 . . 1 7 . 8 3 . 6 2 15 7 17 Detach 72 | . . 1 4 4 . . . 4 4 . . . . 2 2 . . 3 2 . 6 1 . 9 2 13 5 10 Swap 156 | . 6 12 6 7 2 1 . 9 26 7 2 4 4 7 7 5 1 6 . . 3 . 2 6 2 13 5 13 Drop 356 | . 10 8 12 49 1 5 . 10 48 3 1 . 1 27 17 11 5 4 1 2 17 4 2 38 2 37 14 27 Fire 802 | . 22 34 69 14 . . . 9 34 16 3 1 11 34 39 14 18 14 . 10 56 16 . 33 63 180 73 39 Melee 253 | . 1 . . 61 4 4 . 3 63 . . . . . . . . . . . . . . . . . . 117 Ram . | . . . . . . . . . . . . . . . . . . . . . . . . . . . . . Kick . | . . . . . . . . . . . . . . . . . . . . . . . . . . . . . Crush . | . . . . . . . . . . . . . . . . . . . . . . . . . . . . . Escape Stasis 14 | . . . . . . . . . 13 . . . . . . . . . . . . . . . . . 1 . Rewire 204 | . . . . . . . . . 1 . . . 11 . 130 . . . 4 . . . . 56 . 2 . . Trap 1 | . . . . 1 . . . . . . . . . . . . . . . . . . . . . . . . Miscellaneous 1 | . . . 1 . . . . . . . . . . . . . . . . . . . . . . . . . Route ------- -11/Scrapyard -10/Materials (discovered 5 exits: [*Mat x2] / [*Min x2] / *Sub) -10/Subcaves -8/Materials (discovered 3 exits: *Fac x3) -7/Factory (discovered 5 exits: *Fac x3 / *Low x2) -7/Lower Caves -7/Lower Caves (discovered 2 exits: *Fac / *Dat) -7/Data Miner -6/Proximity Caves -6/Factory (discovered 6 exits: *Fac x4 / *Low x2) -6/Lower Caves -6/Lower Caves (discovered 2 exits: *Fac / *Zio) -6/Zion -5/Proximity Caves -5/Factory (discovered 6 exits: *Fac x2 / *Upp x2 / *Ext x2) -5/Extension (discovered 2 exits: *Fac / *Cet) -5/Cetus (discovered 2 exits: *Fac / *Arc) -5/Archives (discovered 3 exits: *Fac / *Hub x2) -5/Hub_04(d) -4/Factory -4/Waste -4/Factory (discovered 6 exits: *Res x4 / *Upp x2) -4/Upper Caves -4/Upper Caves (discovered 2 exits: *Res / *War) -4/Warlord -3/Proximity Caves -3/Research (discovered 3 exits: Res / *Arm / *Qua) -3/Quarantine (discovered 2 exits: *Sec / *Frg) -3/Section 7 (discovered 1 exit: *Res) History --------- Turn | Location | Event 7 | -11/Scrapyard | Discovered new exit (range 16) 32 | -11/Scrapyard | Entered Materials 315 | -10/Materials | Build established: Mutant 565 | -10/Materials | Discovered new exit (range 6) 602 | -10/Materials | Discovered new exit (range 16) 740 | -10/Materials | Discovered new exit (range 4) 833 | -10/Materials | Discovered new exit (range 7) 876 | -10/Materials | Discovered new exit (range 11) 957 | -10/Materials | Entered Subcaves 957 | -10/Subcaves | Learned Materials interactive machine intel 1057 | -10/Subcaves | Learned Materials stockpile data 1117 | -10/Subcaves | Found SUBCON Basin 1399 | -10/Subcaves | Disturbed a concealed Subdweller 1558 | -10/Subcaves | Core integrity fell below 50% 1974 | -10/Subcaves | Visited 4L-MR0's lab 1990 | -10/Subcaves | Found Meta Core 2058 | -10/Subcaves | Discovered new exit (range 15) 2083 | -10/Subcaves | Visited Clippyterm 2087 | -10/Subcaves | Learned Research security intel 2087 | -10/Subcaves | Learned 40 Factory zone layouts 2119 | -10/Subcaves | Entered Materials 2119 | -8/Materials | Evolved 4 slots: Propulsion x1, Utility x2, Weapon x1 2121 | -8/Materials | Loaded intel: 19 interactive machine locations 2258 | -8/Materials | Released subatomizers from SUBCON Basin 2259 | -8/Materials | Core integrity fell below 50% 2298 | -8/Materials | Lost 12 parts (1p4n3u4w) 2542 | -8/Materials | Build established: Skirmisher 2681 | -8/Materials | Sterilization system engaged 2681 | -8/Materials | Non-combat units ordered to evacuate 2730 | -8/Materials | Discovered new exit (range 16) 2781 | -8/Materials | Combat units ordered to evacuate 2981 | -8/Materials | Ambient heat levels rising (+10) 2981 | -8/Materials | Discovered new exit (range 8) 3131 | -8/Materials | Ambient heat levels rising (+10) 3165 | -8/Materials | Discovered new exit (range 16) 3186 | -8/Materials | Entered Factory 3186 | -7/Factory | Evolved 2 slots: Propulsion x1, Utility x1 3187 | -7/Factory | Identified exit to Lower Caves 3187 | -7/Factory | Identified exit to Factory 3188 | -7/Factory | Attached Meta Core, gained temporary slots: Propulsion, Utility, Weapon 3367 | -7/Factory | System corruption reached 10% 3515 | -7/Factory | Fabricated Core Analyzer (x2) 3531 | -7/Factory | Central database locked down 3729 | -7/Factory | Repaired Sub. Shrapnel Launcher 3847 | -7/Factory | Fabricated Enh. Autogun (x1) 3953 | -7/Factory | Cargo convoy interrupted 3996 | -7/Factory | Found Prototype Processor 3996 | -7/Factory | Identified Exp. Signal Interpreter 4004 | -7/Factory | System corruption reached 30% 4137 | -7/Factory | Build established: Hacker-Scout 4164 | -7/Factory | Fabricated L-41 Fighter (x3) 4215 | -7/Factory | Entered Lower Caves 4221 | -7/Lower Caves | Lost 3 allies 4237 | -7/Lower Caves | Encountered a Warlord checkpoint 4240 | -7/Lower Caves | Learned location of Zion (-6) 4282 | -7/Lower Caves | Discovered new exit (range 13) 4285 | -7/Lower Caves | Identified exit to Lower Caves 4362 | -7/Lower Caves | Entered an active Warlord outpost 4363 | -7/Lower Caves | A Commander dispatched an escort 4372 | -7/Lower Caves | Learned Factory emergency access door positions 4372 | -7/Lower Caves | Learned Research security intel 4372 | -7/Lower Caves | Learned Research terminal intel 4372 | -7/Lower Caves | Learned Extension terminal intel 4559 | -7/Lower Caves | Entered another Lower Caves area 4559 | -7/Lower Caves | Accompanied by 3 allies 4560 | -7/Lower Caves | Commander's escort returned to base 4560 | -7/Lower Caves | Commander's escort returned to base 4560 | -7/Lower Caves | Commander's escort returned to base 4567 | -7/Lower Caves | Found DCF Scrap (15 items) 4604 | -7/Lower Caves | Discovered exit to Factory (range 14) 4695 | -7/Lower Caves | Learned location of Extension (-5) 4710 | -7/Lower Caves | Discovered new exit (range 18) 4715 | -7/Lower Caves | Identified exit to Data Miner 4721 | -7/Lower Caves | Attacked by a delusional Derelict stockpiling parts 4858 | -7/Lower Caves | Entered Data Miner 4858 | -7/Data Miner | Discovered new exit (range 6) 4863 | -7/Data Miner | Met Data Miner 4871 | -7/Data Miner | Learned location of Section 7 (-3) 4871 | -7/Data Miner | Acquired the access code to Warlord's prototype stash 4876 | -7/Data Miner | Received God Mode back door access code from Data Miner 4883 | -7/Data Miner | Identified exit to Proximity Caves 4884 | -7/Data Miner | Entered Proximity Caves 4988 | -6/Proximity Caves | Learned Armory terminal intel 4988 | -6/Proximity Caves | Learned Extension trap positions 4988 | -6/Proximity Caves | Learned location of 1 exit from Research 4995 | -6/Proximity Caves | Attracted the attention of an 0b10 base 5001 | -6/Proximity Caves | Core integrity fell below 50% 5025 | -6/Proximity Caves | Destroyed 10 combat bots 5192 | -6/Proximity Caves | Learned 12 Factory zone layouts 5298 | -6/Proximity Caves | Spotted B-75 Beast 5344 | -6/Proximity Caves | Discovered exit to Factory (range 9) 5465 | -6/Proximity Caves | Entered Factory 5465 | -6/Factory | Evolved 2 slots: Utility x2 5466 | -6/Factory | Identified exit to Factory 5549 | -6/Factory | Fabricated Lgt. Regenerative Plating? 5588 | -6/Factory | Build established: Derelict-Assassin 5636 | -6/Factory | Allied Derelicts emerged from ambush trap array 5875 | -6/Factory | Discovered exit to Factory (range 14) 5958 | -6/Factory | Identified exit to Lower Caves 6077 | -6/Factory | Fabricated Cmb. Airjet? 6083 | -6/Factory | Build established: Hacker-Skirmisher 6111 | -6/Factory | Discovered exit to Factory (range 6) 6575 | -6/Factory | Repaired Corrupted Adv. KE Penetrator? 7211 | -6/Factory | Assembled infested ambush trap array 7416 | -6/Factory | Repaired Gravmag Array+ 7653 | -6/Factory | Entered Lower Caves 7654 | -6/Lower Caves | Spotted B-75 Beast 8032 | -6/Lower Caves | Learned Factory terminal intel 8390 | -6/Lower Caves | Discovered new exit (range 13) 8410 | -6/Lower Caves | Identified exit to Lower Caves 8420 | -6/Lower Caves | Entered another Lower Caves area 8427 | -6/Lower Caves | Discovered exit to Factory (range 3) 8603 | -6/Lower Caves | Learned Factory garrison access intel 8887 | -6/Lower Caves | Discovered new exit (range 9) 8891 | -6/Lower Caves | Identified exit to Zion 8911 | -6/Lower Caves | Learned 4 Factory zone layouts 8925 | -6/Lower Caves | Build established: Hacker-Scout 8938 | -6/Lower Caves | Entered Zion 8948 | -6/Zion | Received a hallucinogenic algorithm 8996 | -6/Zion | Discovered new exit (range 10) 9109 | -6/Zion | Learned Factory terminal intel 9124 | -6/Zion | Visited the Megawrench Repair Shop 9345 | -6/Zion | Megawrench repaired 10 parts 9375 | -6/Zion | Met Imprinter 9385 | -6/Zion | Imprinted 9387 | -6/Zion | Declared Zion's savior 9678 | -6/Zion | Identified exit to Proximity Caves 9678 | -6/Zion | Entered Proximity Caves 9678 | -5/Proximity Caves | Accompanied by 4 allies 10286 | -5/Proximity Caves | Attracted the attention of an 0b10 checkpoint 10342 | -5/Proximity Caves | Attracted the attention of an 0b10 outpost 10392 | -5/Proximity Caves | Lost 3 allies 10412 | -5/Proximity Caves | Entered Factory 10412 | -5/Factory | Accompanied by 4 allies 10412 | -5/Factory | Evolved 2 slots: Propulsion x1, Utility x1 10413 | -5/Factory | Identified exit to Extension 10415 | -5/Factory | Loaded intel: 27 terminal locations 10416 | -5/Factory | Loaded intel: 4 garrison access locations 10589 | -5/Factory | Retrieved Zion intel report: Branch Access 10589 | -5/Factory | Identified exit to Upper Caves 10599 | -5/Factory | Retrieved Zion intel report: Prototype Stockpiles 10651 | -5/Factory | Lost 3 allies 10693 | -5/Factory | Retrieved Zion intel report: Active Terminals 10700 | -5/Factory | Discovered new exit (range 21) 10756 | -5/Factory | Identified exit to Factory 10772 | -5/Factory | Retrieved Zion intel report: Depthwide Sectors/-5 10775 | -5/Factory | Discovered exit to Factory (range 10) 10785 | -5/Factory | Retrieved Zion intel report: Unaware Analyses 10805 | -5/Factory | Found Prototype Launcher 10805 | -5/Factory | Identified Tesla Bomb Launcher 10872 | -5/Factory | Retrieved Zion intel report: Depthwide Sectors/-4 10985 | -5/Factory | Retrieved Zion intel report: Trap Installations 11055 | -5/Factory | Fabricated Combat Drone Bay? 11640 | -5/Factory | Entered Extension 11641 | -5/Extension | Loaded intel: 25 trap records 11642 | -5/Extension | Loaded intel: 19 terminal locations 11654 | -5/Extension | Zion Light squad teleported in 11748 | -5/Extension | Retrieved Zion intel report: Component Schematics 11751 | -5/Extension | Retrieved Zion intel report: Unaware Schematics 11755 | -5/Extension | Rescued a captive Derelict 11818 | -5/Extension | Retrieved Zion intel report: Guard Positions 11861 | -5/Extension | Rescued a captive Derelict 11863 | -5/Extension | Rescued a captive Derelict 11882 | -5/Extension | Retrieved Zion intel report: Component Schematics 11883 | -5/Extension | Retrieved Zion intel report: Prototype Schematics 12219 | -5/Extension | Spotted B-75 Beast 12235 | -5/Extension | Destroyed B-75 Beast 12239 | -5/Extension | Spotted B-75 Beast 12272 | -5/Extension | Destroyed B-75 Beast 12291 | -5/Extension | Rescued a captive Derelict 12299 | -5/Extension | Lost 4 allies 12332 | -5/Extension | Retrieved Zion intel report: Prototype Schematics 12403 | -5/Extension | Rescued a captive Derelict 12464 | -5/Extension | Lost 4 allies 12529 | -5/Extension | Rescued a captive Derelict 12530 | -5/Extension | Rescued a captive Derelict 12545 | -5/Extension | Rescued a captive Derelict 12545 | -5/Extension | Rescued a captive Derelict 12608 | -5/Extension | Retrieved Zion intel report: Emergency Access 12609 | -5/Extension | Zion Light squad teleported in 12611 | -5/Extension | Zion Heavy squad teleported in 12629 | -5/Extension | Repaired Gravmag Array+? 12691 | -5/Extension | Rescued A7 12730 | -5/Extension | Discovered exit to Factory (range 10) 12730 | -5/Extension | Discovered new exit (range 6) 12762 | -5/Extension | Identified exit to Cetus 12809 | -5/Extension | Entered Cetus 12809 | -5/Cetus | Accompanied by 21 allies (A7) 12814 | -5/Cetus | Acquired a Cetus Manufacturing Module code from A7 12818 | -5/Cetus | Spotted Cetus Guard 12818 | -5/Cetus | Spotted Cetus Guard 12821 | -5/Cetus | Spotted Cetus Guard 12824 | -5/Cetus | Spotted Cetus Guard 12830 | -5/Cetus | Allies destroyed Cetus Guard 12832 | -5/Cetus | Destroyed Cetus Guard 12835 | -5/Cetus | Destroyed Cetus Guard 12838 | -5/Cetus | Destroyed Cetus Guard 12860 | -5/Cetus | Found Prototype Protection 12860 | -5/Cetus | Identified Zio. Weapon Casing 12863 | -5/Cetus | Lost 3 allies 12894 | -5/Cetus | Started Cetus Manufacturing Module 12907 | -5/Cetus | Escorted A7 to Cetus Mainframe 12919 | -5/Cetus | Manufactured an Enhanced Grunt 12944 | -5/Cetus | Manufactured an Enhanced Grunt 12969 | -5/Cetus | Manufactured an Enhanced Grunt 12994 | -5/Cetus | Manufactured an Enhanced Grunt 13016 | -5/Cetus | Discovered new exit (range 21) 13019 | -5/Cetus | Manufactured an Enhanced Grunt 13027 | -5/Cetus | Spotted Cetus Guard 13067 | -5/Cetus | Spotted Cetus Guard 13072 | -5/Cetus | Spotted Cetus Guard 13078 | -5/Cetus | Spotted Cetus Guard 13084 | -5/Cetus | Discovered exit to Factory (range 21) 13084 | -5/Cetus | Destroyed Cetus Guard 13096 | -5/Cetus | Destroyed Cetus Guard 13096 | -5/Cetus | Allies destroyed Cetus Guard 13103 | -5/Cetus | Scared off Revision 17 13138 | -5/Cetus | Build established: Commander-Gunner 13171 | -5/Cetus | Identified exit to Archives 13233 | -5/Cetus | Entered Archives 13233 | -5/Archives | Accompanied by 22 allies (A7) 13238 | -5/Archives | Received a hacking code to weaken MAIN.C 13257 | -5/Archives | Discovered new exit (range 21) 13286 | -5/Archives | Discovered new exit (range 20) 13287 | -5/Archives | Discovered exit to Factory (range 22) 13537 | -5/Archives | Identified exit to Hub_04(d) 13592 | -5/Archives | Entered Hub_04(d) 13592 | -5/Hub_04(d) | Accompanied by 19 allies 13601 | -5/Hub_04(d) | Garrison activated, responded to threat 13645 | -5/Hub_04(d) | Discovered exit to Factory (range 9) 13740 | -5/Hub_04(d) | Retrieved Zion intel report: Active Terminals 13831 | -5/Hub_04(d) | Network Hub disabled 13859 | -5/Hub_04(d) | Spotted Lightning 13859 | -5/Hub_04(d) | Spotted Lightning 13859 | -5/Hub_04(d) | Spotted Lightning 13861 | -5/Hub_04(d) | Allies destroyed Lightning 13868 | -5/Hub_04(d) | Garrison activated, responded to threat 13876 | -5/Hub_04(d) | Destroyed Lightning 13892 | -5/Hub_04(d) | Spotted Lightning 13893 | -5/Hub_04(d) | Spotted Lightning 13896 | -5/Hub_04(d) | Spotted Lightning 13906 | -5/Hub_04(d) | Found Prototype Protection 13906 | -5/Hub_04(d) | Identified Zio. Heavy Carapace 13908 | -5/Hub_04(d) | System corruption reached 10% 13920 | -5/Hub_04(d) | Lost 14 allies 13941 | -5/Hub_04(d) | Core integrity fell below 50% 13957 | -5/Hub_04(d) | Entered Factory 13957 | -4/Factory | Evolved 2 slots: Power x1, Propulsion x1 13958 | -4/Factory | Loaded intel: 26 terminal locations 13966 | -4/Factory | Zion Infowar Resupply teleported in 13973 | -4/Factory | Found Prototype Processor 13973 | -4/Factory | Identified Exp. Terrain Scan Processor 13986 | -4/Factory | Lost 10 parts (2p2n5u1w) 14117 | -4/Factory | Sucked down chute 14117 | -4/Factory | Entered Waste 14125 | -4/Waste | Found Broken Adv. Force Booster 14129 | -4/Waste | Spotted C-40 Crusher 14130 | -4/Waste | Spotted C-40 Crusher 14132 | -4/Waste | EMP discharged 14132 | -4/Waste | System corruption reached 10% 14152 | -4/Waste | Met Warlord forces unprepared to attack 14155 | -4/Waste | Allies destroyed C-40 Crusher 14160 | -4/Waste | Spotted C-40 Crusher 14164 | -4/Waste | Allies destroyed C-40 Crusher 14174 | -4/Waste | Allies destroyed C-40 Crusher 14195 | -4/Waste | Lost 5 allies 14229 | -4/Waste | Spotted C-40 Crusher 14232 | -4/Waste | EMP discharged 14242 | -4/Waste | Destroyed C-40 Crusher 14271 | -4/Waste | Discovered new exit (range 23) 14275 | -4/Waste | Spotted C-40 Crusher 14282 | -4/Waste | Destroyed C-40 Crusher 14290 | -4/Waste | Found Damper Plating 14304 | -4/Waste | Identified exit to Factory 14326 | -4/Waste | Entered Factory 14326 | -4/Factory | Accompanied by 8 allies 14330 | -4/Factory | Build established: Scout 14337 | -4/Factory | Found Quantum Capacitor 14351 | -4/Factory | Discovered new exit (range 23) 14405 | -4/Factory | Identified exit to Research 14445 | -4/Factory | Discovered new exit (range 22) 14457 | -4/Factory | Identified exit to Upper Caves 14555 | -4/Factory | Retrieved Zion intel report: Depthwide Sectors/-3 14592 | -4/Factory | Discovered exit to Upper Caves (range 24) 14651 | -4/Factory | Found Exp. Signal Interpreter 14826 | -4/Factory | First assault squad dispatched 14829 | -4/Factory | Retrieved Zion intel report: Active Terminals 14855 | -4/Factory | Retrieved Zion intel report: Emergency Access 14856 | -4/Factory | Incoming assault squad redirected 14936 | -4/Factory | Retrieved Zion intel report: Active Garrisons 15056 | -4/Factory | Retrieved Zion intel report: Component Stockpiles 15086 | -4/Factory | Retrieved Zion intel report: Unaware Analyses 15093 | -4/Factory | Retrieved Zion intel report: Prototype Schematics 15129 | -4/Factory | Discovered exit to Research (range 13) 15213 | -4/Factory | Garrison activated, responded to threat 15227 | -4/Factory | Retrieved Zion intel report: Main Access 15228 | -4/Factory | Zion Light squad teleported in 15260 | -4/Factory | Found Zio. Weapon Casing 15266 | -4/Factory | Lost 7 parts (2p2n1u2w) 15282 | -4/Factory | System corruption reached 30% 15295 | -4/Factory | Lost 3 allies 15321 | -4/Factory | Lost 5 parts (2n2u1w) 15369 | -4/Factory | Lost 3 parts (1p2n) 15425 | -4/Factory | Lost 4 parts (1p2n1w) 15436 | -4/Factory | Zion Hover Resupply teleported in 15515 | -4/Factory | Entered Upper Caves 15733 | -4/Upper Caves | Spotted B-86 Titan 15759 | -4/Upper Caves | Destroyed B-86 Titan 15859 | -4/Upper Caves | Discovered new exit (range 9) 15865 | -4/Upper Caves | Identified exit to Upper Caves 15907 | -4/Upper Caves | Entered another Upper Caves area 15911 | -4/Upper Caves | Discovered exit to Research (range 3) 16046 | -4/Upper Caves | Discovered new exit (range 12) 16050 | -4/Upper Caves | Identified exit to Warlord 16086 | -4/Upper Caves | Learned location of Testing (-2) 16173 | -4/Upper Caves | Entered Warlord 16184 | -4/Warlord | Discovered new exit (range 23) 16186 | -4/Warlord | System corruption cleaned by Quarantine Array 16304 | -4/Warlord | Learned Armory trap positions 16304 | -4/Warlord | Learned Testing stockpile data 16305 | -4/Warlord | Learned Testing security intel 16305 | -4/Warlord | Learned Research repair station intel 16379 | -4/Warlord | Opened Warlord's prototype stash 16381 | -4/Warlord | Found Prototype Device 16381 | -4/Warlord | Identified Thermal Barrier 16393 | -4/Warlord | Found Prototype Device 16393 | -4/Warlord | Identified Exp. Phase Shifter 16397 | -4/Warlord | Found Prototype Reactor 16397 | -4/Warlord | Identified Vortex Chain Reactor 16414 | -4/Warlord | Rebuked by Warlord 16434 | -4/Warlord | Visited the Vortex Lab 16439 | -4/Warlord | Warlord's base attacked by MAIN.C 16439 | -4/Warlord | Found Prototype Energy Cannon 16442 | -4/Warlord | Found Prototype Energy Cannon 16561 | -4/Warlord | Build established: Commander-Scout 16699 | -4/Warlord | Lost 3 allies 16768 | -4/Warlord | P-70 Sage assimilated allied KP-3TX(Y) 16772 | -4/Warlord | Spotted B-90 Cyclops 16789 | -4/Warlord | Warlord forces counterattacked 16801 | -4/Warlord | Spotted B-90 Cyclops 16843 | -4/Warlord | Spotted Executioner 16850 | -4/Warlord | Destroyed Executioner 16874 | -4/Warlord | Lost 8 allies 16878 | -4/Warlord | Spotted Striker 16878 | -4/Warlord | Spotted B-90 Cyclops 16894 | -4/Warlord | Allies destroyed B-90 Cyclops 16901 | -4/Warlord | Spotted B-86 Titan 16906 | -4/Warlord | Spotted Striker 16939 | -4/Warlord | Spotted Striker 16939 | -4/Warlord | Spotted Striker 16951 | -4/Warlord | Destroyed Striker 16985 | -4/Warlord | Destroyed 13 combat bots 17016 | -4/Warlord | Lost 19 allies 17114 | -4/Warlord | Warlord base infiltrated, sounded retreat 17125 | -4/Warlord | Spotted Striker 17153 | -4/Warlord | Found Prototype Ballistic Cannon 17153 | -4/Warlord | Identified Hvy. Autocannon 17205 | -4/Warlord | Spotted Executioner 17223 | -4/Warlord | Spotted Striker 17259 | -4/Warlord | Spotted Executioner 17270 | -4/Warlord | Found Prototype Device 17270 | -4/Warlord | Identified Exp. Shock Absorption System 17289 | -4/Warlord | Spotted Striker 17290 | -4/Warlord | Spotted Striker 17338 | -4/Warlord | Lost 15 allies 17339 | -4/Warlord | Spotted Striker 17360 | -4/Warlord | Spotted Executioner 17373 | -4/Warlord | Identified exit to Proximity Caves 17388 | -4/Warlord | Lost 7 allies 17436 | -4/Warlord | Entered Proximity Caves 17539 | -3/Proximity Caves | Build established: Tank 17566 | -3/Proximity Caves | Spotter reported a threat 17651 | -3/Proximity Caves | Spotted B-86 Titan 17814 | -3/Proximity Caves | Destroyed 8 combat bots 17860 | -3/Proximity Caves | Destroyed B-86 Titan 17915 | -3/Proximity Caves | Discovered exit to Research (range 8) 17917 | -3/Proximity Caves | Entered Research 17917 | -3/Research | Evolved 2 slots: Utility x2 17918 | -3/Research | Identified exit to Research 17920 | -3/Research | Loaded intel: 25 terminal locations 17921 | -3/Research | Loaded intel: 4 repair station locations 17928 | -3/Research | Discovered new exit (range 7) 17929 | -3/Research | Zion Demo squad teleported in 17931 | -3/Research | Identified exit to Armory 18045 | -3/Research | Retrieved Zion intel report: Prototype Stockpiles 18061 | -3/Research | Found Prototype Processor 18061 | -3/Research | Identified Exp. Targeting Computer 18070 | -3/Research | Retrieved Zion intel report: Active Garrisons 18140 | -3/Research | Zion Heavy squad teleported in 18156 | -3/Research | Identified Vortex Cannon (x2) 18220 | -3/Research | Build established: Scavenger-Mutant 18228 | -3/Research | Found Prototype Device 18228 | -3/Research | Identified Exp. Thermal Shield 18254 | -3/Research | Retrieved Zion intel report: Prototype Schematics 18274 | -3/Research | Retrieved Zion intel report: Guard Positions 18518 | -3/Research | Spotted B-86 Titan 18547 | -3/Research | Found Prototype Device 18547 | -3/Research | Identified Exp. ECM Suite 18585 | -3/Research | Retrieved Zion intel report: Active Terminals 18686 | -3/Research | Build established: Scavenger-Scout 18729 | -3/Research | Destroyed 11 combat bots 18781 | -3/Research | Retrieved Zion intel report: Component Stockpiles 18782 | -3/Research | Zion Light squad teleported in 18788 | -3/Research | Found Prototype Protection 18788 | -3/Research | Identified Centrium Heavy Armor Plating 18838 | -3/Research | Incoming investigation squad redirected 18917 | -3/Research | First assault squad dispatched 18947 | -3/Research | Incoming assault squad redirected 19019 | -3/Research | Retrieved Zion intel report: Emergency Access 19072 | -3/Research | Discovered new exit (range 9) 19079 | -3/Research | Identified exit to Quarantine 19127 | -3/Research | Entered Quarantine 19127 | -3/Quarantine | Accompanied by 2 allies 19140 | -3/Quarantine | Spotted Alpha 7 19154 | -3/Quarantine | Destroyed Alpha 7 19155 | -3/Quarantine | Incoming investigation squad redirected 19206 | -3/Quarantine | Found Alien Energy Cannon 19206 | -3/Quarantine | Identified Core Cannon 19242 | -3/Quarantine | Retrieved Zion intel report: Guard Positions 19313 | -3/Quarantine | System corruption reached 10% 19328 | -3/Quarantine | Found Quantum Capacitor 19342 | -3/Quarantine | Retrieved Zion intel report: Active Terminals 19344 | -3/Quarantine | Retrieved Zion intel report: Prototype Stockpiles 19377 | -3/Quarantine | First assault squad dispatched 19397 | -3/Quarantine | Incoming assault squad redirected 19441 | -3/Quarantine | Central database locked down 19450 | -3/Quarantine | Scanned by Researcher 19500 | -3/Quarantine | Retrieved Zion intel report: Prototype Schematics 19516 | -3/Quarantine | Retrieved Zion intel report: Component Schematics 19527 | -3/Quarantine | Retrieved Zion intel report: Active Garrisons 19650 | -3/Quarantine | Repaired Cmb. Linear Gravjet+ 19665 | -3/Quarantine | Spotted Fortress 19706 | -3/Quarantine | Discovered new exit (range 6) 19706 | -3/Quarantine | Discovered new exit (range 7) 19709 | -3/Quarantine | Identified exit to Section 7 19711 | -3/Quarantine | Identified exit to Protoforge 19713 | -3/Quarantine | Entered Section 7 20035 | -3/Section 7 | Spotted B-86 Titan 20123 | -3/Section 7 | Retrieved Zion intel report: Main Access 20370 | -3/Section 7 | Spotted Executioner 20372 | -3/Section 7 | Spotted Executioner 20392 | -3/Section 7 | Spotted B-99 Colossus 20413 | -3/Section 7 | Found Alien Artifact 20413 | -3/Section 7 | Identified Transdimensional Reconstructor 20413 | -3/Section 7 | Warped through subspace 20432 | -3/Section 7 | Found Transdimensional Reconstructor 20439 | -3/Section 7 | Found Alien Artifact 20439 | -3/Section 7 | Identified Terrabomb 20439 | -3/Section 7 | Used Terrabomb 20444 | -3/Section 7 | Found Terrabomb 20488 | -3/Section 7 | Spotted Executioner 20587 | -3/Section 7 | Found Alien Artifact 20587 | -3/Section 7 | Identified Integrity Redistributor 20587 | -3/Section 7 | Used Integrity Redistributor, redistributed integrity from core (-108) 20588 | -3/Section 7 | Core integrity fell below 50% 20607 | -3/Section 7 | Found Alien Artifact 20607 | -3/Section 7 | Identified LRC Storage 20607 | -3/Section 7 | Installed LRC Storage, increased inventory capacity (+2) 20612 | -3/Section 7 | Found Alien Artifact 20612 | -3/Section 7 | Identified LRC Armor 20612 | -3/Section 7 | Installed LRC Armor, increased core integrity (+250) 20798 | -3/Section 7 | System corruption reached 30% 20928 | -3/Section 7 | Spotted Striker 20932 | -3/Section 7 | Spotted Striker 21093 | -3/Section 7 | Build established: Mutant 21093 | -3/Section 7 | Found Quantum Capacitor 21169 | -3/Section 7 | Found Alien Artifact 21169 | -3/Section 7 | Identified Integrated Dissipator 21169 | -3/Section 7 | Installed Integrated Dissipator, increased core heat dissipation (+20) 21177 | -3/Section 7 | Spotted S7 Guard 21183 | -3/Section 7 | Found Alien Artifact 21183 | -3/Section 7 | Identified Core Membrane 21183 | -3/Section 7 | Installed Core Membrane, gained immunity to corruption 21197 | -3/Section 7 | Found Alien Artifact 21197 | -3/Section 7 | Identified Integrated Mediator 21197 | -3/Section 7 | Installed Integrated Mediator, increased core attachment efficiency 21213 | -3/Section 7 | Retrieved Zion intel report: Trap Installations 21259 | -3/Section 7 | Terminal network hard line cut 21262 | -3/Section 7 | Spotted S7 Guard 21269 | -3/Section 7 | Found Alien Artifact 21269 | -3/Section 7 | Identified Core Regenerator 21269 | -3/Section 7 | Used Core Regenerator, restored core integrity (+387) 21285 | -3/Section 7 | Found Prototype Processor 21285 | -3/Section 7 | Identified Spectral Analyzer 21363 | -3/Section 7 | Core integrity fell below 20% 21392 | -3/Section 7 | Lost 13 parts (3p5n2u3w) 21410 | -3/Section 7 | Found Alien Artifact 21410 | -3/Section 7 | Identified Spacefold Activator 21431 | -3/Section 7 | Found Integrated Mediator 21431 | -3/Section 7 | Installed Integrated Mediator, increased core attachment efficiency 21437 | -3/Section 7 | Warped through subspace 21442 | -3/Section 7 | Found Prototype Device 21442 | -3/Section 7 | Identified Exp. Shield Generator 21448 | -3/Section 7 | Used Terrabomb 21463 | -3/Section 7 | First assault squad dispatched 21495 | -3/Section 7 | Incoming assault squad redirected 21502 | -3/Section 7 | Spotted Alpha 7 21502 | -3/Section 7 | Spotted Alpha 7 21503 | -3/Section 7 | Destroyed by Alpha 7 with Multirail Last Messages --------------- 21476_ System corrupted: Matter fused (-7). 21476_ U-05 Engineer builds a Wall. 21479_ C-45 Heavy ARC bursts open, deploying its payload. 21479_ G-73 Enforcer unfolds itself. 21479_ L-61 Swordsman unfolds itself. 21479_ G-67 Veteran unfolds itself. 21479_ M-36 Artificer unfolds itself. 21483_ Core Membrane filtered system corruption (1). 21483_ Terminal disabled. 21491_ System corrupted: Lrn. Terrain Scanner rejected. 21493_ Q366-c: IFF CHECK FAIL. 21495_ ALERT: Higher priority target reported, redirecting assault. 21502_ Penetrated by Slug. 21502_ Slug penetrates Wall. 21502_ Hvy. Armor Plating destroyed. 21503_ Penetrated by Slug. Map ----- +----------------------------------------------------+ | # # """ """ #"" """ # #????#??#" | | ###### # """ """ #"" """ # #????????" | | ##???# # " # #????#???" | | ###### # # | # #???###??" | | !!% # #= # #???#????" | | !! # ######### #???##???" | | #################???## #???????#" | | #??????# ##????# #???#???#" | | * ##???#?# ^ #????## ###?#????" | | #??????# ^ ^ #?#???# T"#??????" | | ##????##! ^ #???#?# ""??????#" | | ########* | #??#??# #????????" | | #######"###+########## #???#???#" | | #?#??????" | | ##+############### ###?#???#" | | #?##??#??#+##+######+######????#???" | | """ ##????#??????? ??# #??##??????" | | """ #???????#????? ??# ##????#???# | | """ #??????? ???? ???#!!! #?#???????#" | | """ #????????????????#!! =#?????????#"" | | """ #?#???????? ?? ?##!! #????#????#""" | | """ #?????#??????????# #?????????#""" | | """ ##????#??????????########????????##""" | | #?#??????????#??################# #R | | """"""""###????????#?#?## h 7 h | | """T "" #?????????????#@ / | | "" """ #???##????????# / | | ! #?????????????# Q 7 / | | #####?????????# ######+##### # | | """ """ "#""#?????????# #????????????#""" | | """ """ "#T"########### #???????????????" | | """ """ " #???????????????" | | """ """ / #????????????#???? | | """ """ " + ?????????#?????? | | """ """ ]" ##???????????? ?????? | | """ """ " ######+###### #????????????? ?????? | | """ """ " #???????????# #??????????????#????# | | """ """ " #???????????# #???????????#?????#?? | | " #???????????# #?????????????????#?# | | = = " #???????????# #??? ??????#??????#?? | | "#""""""""" ??????????? #????????#??????????? | | " " " ##??????????#/#????????????????###? | | " " "" ##???????????? ???????????????????# | | " " " T????????????? ?????????????????#?? | | "#""""" # "????????????? ????????????????#??? | | " # #????????????? ??????????????##???? | | """"" " ## #????????????? ??????????????#????? | | """"" " ## ##????????????? ????#?#???????????#? | | """ " ### #??????????????##????#????????#????## | | " " " #?# #???????????????????????????#???????# | +----------------------------------------------------+ Best States ------------- Heat Dissipation 156 Energy Generation 55 Energy Capacity 700 Matter Stores 300 Matter Capacity 300 Sight Range 23 Robot Scan Range 16 Terrain Scan Range 24 Terrain Scan Density 1210 ECM Strength 2 Cloak Strength 2 Additional Mass Support 16 Corruption Containment 8 Corruption Block 14 Armor Coverage 1200 Resistance: TH 50 Resistance: EX 75 Utility Shielding 90 Weapon Shielding 100 Weapon Cycling 25 Phase Shifting 20 Evasion (%) 78 Targeting Accuracy 12 Melee Accuracy 8 Core Analysis 6 Particle Charging 25 Kinecelleration 40 Offensive Hacking 14 Defensive Hacking 10 Item Schematics ----------------- Gatling Laser | -7/Factory | Scanalyzed Huge Storage Unit | -7/Factory | Scanalyzed Enh. Autogun | -7/Factory | Scanalyzed Hyp. Gauss Rifle | -7/Factory | Hacked Combat Drone Bay | -7/Data Miner | Free Lgt. Regenerative Plating | -7/Data Miner | Free Cld. Aerolev Unit | -7/Data Miner | Free Exp. Propulsion Shielding | -7/Data Miner | Free Antimatter Cannon | -7/Data Miner | Free Field Propulsion Drive | -7/Data Miner | Free Imp. Focal Shield | -7/Data Miner | Free Imp. Arc Projector | -7/Data Miner | Free Cmb. Airjet | -6/Factory | Hacked Imp. Cooling System | -6/Factory | Scanalyzed Adv. KE Penetrator | -6/Factory | Scanalyzed Gravmag Array | -6/Factory | Scanalyzed Tiamat Missile Launcher | -6/Factory | Scanalyzed Imp. Trap Scanner | -6/Zion | Archive Imp. Launcher Guidance Computer | -6/Zion | Archive Imp. Thermal Generator | -6/Zion | Archive Disruptor Cannon | -6/Zion | Archive Adv. Signal Interpreter | -6/Zion | Archive Lrn. Tractor Beam | -6/Zion | Archive Imp. Hardlight Generator | -6/Zion | Archive Adv. Transmission Jammer | -6/Zion | Archive Phase Gun | -6/Zion | Archive Magnetic Acceleration Cannon | -6/Zion | Archive Imp. Dynamic Insulation System | -6/Zion | Archive Imp. Recalibrator | -6/Zion | Archive Coil Gun | -6/Zion | Archive Imp. Particle Charger | -6/Zion | Archive Tesla Rifle | -6/Zion | Archive Cloaking Device | -5/Extension | Z-intel Proton Missile Launcher | -5/Extension | Z-intel Imp. Targeting Computer | -5/Extension | Z-intel Enh. Optical Array | -5/Extension | Z-intel Arm. Medium Treads | -5/Extension | Z-intel Imp. Reaction Control System | -5/Extension | Z-intel Energy Well | -5/Extension | Z-intel Com. Battery | -5/Extension | Z-intel Weapon Shielding | -5/Extension | Z-intel Lgt. Angular Momentum Engine | -5/Extension | Z-intel Imp. Remote Datajack | -5/Extension | Z-intel Adv. Assault Cannon | -5/Extension | Z-intel Imp. Coolant Injector | -5/Extension | Z-intel Imp. Component Analysis Suite | -5/Extension | Z-intel Imp. VSS Leg | -5/Extension | Z-intel Seismic Detector | -5/Extension | Z-intel Adv. Heat Sink | -5/Extension | Z-intel Med. Storage Unit | -5/Extension | Z-intel Smartbomb Launcher | -5/Extension | Z-intel System Shield | -5/Extension | Z-intel Arm. Huge Wheel | -5/Extension | Z-intel Force Field | -5/Extension | Z-intel Xenon Bombardment Thruster | -5/Extension | Z-intel Launcher Guidance Computer | -5/Extension | Z-intel Energy Filter | -5/Extension | Z-intel Hcp. Storage Unit | -5/Extension | Z-intel Mic. Nuclear Core | -5/Extension | Z-intel Cld. Gravmag System | -5/Extension | Z-intel Imp. Heavy Laser | -5/Extension | Z-intel Mni. Smartbomb Launcher | -5/Extension | Z-intel Force Rifle | -5/Extension | Z-intel Prc. Energy Filter | -5/Extension | Z-intel F-cell Engine | -5/Extension | Z-intel Imp. Airjet | -5/Extension | Z-intel Cld. Deuterium Engine | -5/Extension | Z-intel Imp. Thermal Defense Suite | -5/Extension | Z-intel Thermal Defense Suite | -5/Extension | Z-intel Cold Fusion Reactor | -5/Extension | Z-intel Exp. Weapon Shielding | -5/Extension | Z-intel Enh. Force Rifle | -5/Extension | Z-intel Biomechanical Wings | -5/Extension | Z-intel Exp. Power Shielding | -5/Extension | Z-intel Shock Maul | -5/Extension | Z-intel Lgt. Neutrino Core | -5/Extension | Z-intel Prc. Matter Filter | -5/Extension | Z-intel Imp. Matter Compressor | -5/Extension | Z-intel Prc. Grenade Launcher | -5/Extension | Z-intel Cld. Nuclear Pulse Thruster | -5/Extension | Z-intel Hvy. Proton Missile Launcher | -5/Extension | Z-intel Imp. Lightning Gun | -5/Extension | Z-intel Com. Ion Cannon | -5/Extension | Z-intel Enh. Armored Leg | -4/Factory | Z-intel Adv. Variable Charge Gun | -4/Factory | Z-intel Adv. Matter Compressor | -4/Factory | Z-intel Adv. Energy Well | -4/Factory | Z-intel Adv. Plasma Rifle | -4/Factory | Z-intel Enh. Armored Medium Treads | -4/Factory | Z-intel Lrn. Phase Cannon | -4/Factory | Z-intel Ionic Axe | -4/Factory | Z-intel Exp. Cooling System | -4/Factory | Z-intel Gravity Neutralizer | -4/Factory | Z-intel Hvy. Tesla Rifle | -4/Factory | Z-intel Imp. KE Penetrator | -3/Research | Z-intel Exp. Matter Compressor | -3/Research | Z-intel Exp. Power Amplifier | -3/Research | Z-intel Adv. Gravity Neutralizer | -3/Research | Z-intel Imp. Diametric Drive | -3/Research | Z-intel Exp. Optical Array | -3/Research | Z-intel Hds. Centrium Wheel | -3/Research | Z-intel Exp. Thermal Shield | -3/Research | Z-intel Enh. Coil Gun | -3/Research | Z-intel Centrium Light Armor Plating | -3/Research | Z-intel Adv. Myomer Leg | -3/Research | Z-intel Neutron Missile Launcher | -3/Quarantine | Archive Thunder Hammer | -3/Quarantine | Archive Enh. Flexi-carbon Leg | -3/Quarantine | Archive Hvy. Wave Gun | -3/Quarantine | Archive Enh. Biometal Leg | -3/Quarantine | Z-intel Exp. Thermal Generator | -3/Quarantine | Z-intel Hvy. Antimatter Reactor | -3/Quarantine | Z-intel Prc. Phase Gun | -3/Quarantine | Z-intel Cld. Field Propulsion Drive | -3/Quarantine | Z-intel Hvy. Proton Cannon | -3/Quarantine | Z-intel Adv. Micro-nuke Launcher | -3/Quarantine | Z-intel Adv. Remote Shield | -3/Quarantine | Z-intel Launcher Loader | -3/Quarantine | Z-intel Adv. System Shield | -3/Quarantine | Z-intel Hyp. Railgun | -3/Quarantine | Z-intel Adv. Melee Analysis Suite | -3/Quarantine | Z-intel Transmission Jammer | -3/Quarantine | Z-intel Imp. Cloaking Device | -3/Quarantine | Z-intel Adv. ECM Suite | -3/Quarantine | Z-intel Imp. Melee Analysis Suite | -3/Quarantine | Z-intel Enh. Force Lance | -3/Quarantine | Z-intel Adv. Weight Redist. System | -3/Quarantine | Z-intel Thunder Leg | -3/Quarantine | Z-intel Quantum Rifle | -3/Quarantine | Z-intel Matter Neutralizer | -3/Quarantine | Z-intel Armor Integrity Analyzer | -3/Quarantine | Z-intel Adv. Focal Shield | -3/Quarantine | Z-intel Com. Mass Driver | -3/Section 7 | Archive Helical Railgun | -3/Section 7 | Archive Diametric Drive | -3/Section 7 | Archive Centrium Medium Armor Plating | -3/Section 7 | Archive Robot Schematics ------------------ M-28 Smith | -7/Data Miner | Free E-15 Imp | -7/Data Miner | Free G-50 Soldier | -7/Data Miner | Free X-67 Chaingunner | -7/Data Miner | Free S-27 Virus | -7/Data Miner | Free C-35 Carver | -7/Data Miner | Free H-55 Commando | -6/Zion | Archive C-57 Dissector | -6/Zion | Archive B-60 Warrior | -5/Extension | Z-intel K-01 Serf | -5/Extension | Z-intel A-15 Conveyor | -5/Extension | Z-intel R-06 Scavenger | -3/Quarantine | Archive M-30 Cleanser | -3/Section 7 | Archive Fabricated ------------ Core Analyzer | x2 | -7/Factory | Preloaded Enh. Autogun | x1 | -7/Factory L-41 Fighter | x3 | -7/Factory | Preloaded Lgt. Regenerative Plating | x1 | -6/Factory Cmb. Airjet | x2 | -6/Factory Combat Drone Bay | x1 | -5/Factory Repaired ---------- Sub. Shrapnel Launcher | 36% | -7/Factory Adv. KE Penetrator | 96% | -6/Factory | Corrupted Gravmag Array | 69% | -6/Factory Gravmag Array | 54% | -5/Extension Cmb. Linear Gravjet | 22% | -3/Quarantine Studied --------- Cesium-ion Thruster | -7/Factory | Hacked Gatling Laser | -7/Factory | Hacked Gravmag System | -6/Factory | Hacked Gravmag Array | -6/Factory | Hacked Power Maul | -6/Factory | Hacked Antigrav Array | -3/Research | Hacked Imp. Gyrokinetic Inverter | -3/Research | Hacked Cmb. Linear Gravjet | -3/Research | Hacked Com. HERF Cannon | -3/Quarantine | Hacked Alien Tech Used ----------------- Core Cannon Transdimensional Reconstructor Terrabomb Integrity Redistributor LRC Storage LRC Armor Integrated Dissipator Core Membrane Integrated Mediator Core Regenerator Spacefold Activator Achievements -------------- None Challenges ------------ None Game ------ Seed ShockCentriumMinigun Manual? 0 Play Time 06:28:59 Cumulative 389.0 hours Start 2026.01.06 @ 16:07:08 End 2026.01.06 @ 23:19:47 Sessions 1 Manual Loads 0 Difficulty Rogue Special Mode None Game No. 135 Rogue 135 Adventurer 0 Explorer 0 Win Type - Total 9 Types 5/0/0/1/0/0/0/1/0/2 Lore% 83 Gallery% 79 Achievement% 68 Wizard Run 0 Options --------- Layout 1 ASCII 0 Keyboard 0 Movement Mouse Keybinds 0 Fullscreen 2 Font 32/SmallcapsGlow Map View 50x35 Zoom Use 0% Tactical HUD 1 Map Filters NONE Filters NONE Steam 1 RUN: 5a109749-acd6-4964-a4a4-6c341c62dbce